{"text_format":"3","workbook":"xlsx","n_sheets":6,"sheets":["Marker Feat Constants","Marker Feat TLK Work","Marker Feat Descriptions","Sheet5","Sheet1","Sheet2"],"not_rendered":{"defined_names":3},"read":"whole","date_system":"1900"}

{"sheet":"Marker Feat Constants","index":0,"n_rows":266,"n_cols":6,"rows_kept":266}
[null,"//:: Dark Sun Assassin marker feats",{"$nulls":3},{"$f":"CONCATENATE(A1, B1, C1, D1, E1)","v":"//:: Dark Sun Assassin marker feats"}]
["const int ","FEAT_ARCANIST_SPELLCASTING_ASSASSIN","  =  ",25000,";","const int FEAT_ARCANIST_SPELLCASTING_ASSASSIN  =  25000;"]
["const int ","FEAT_ARENA_MAGE_SPELLCASTING_ASSASSIN","  =  ",{"$f":"SUM(D2+1)","v":25001},";",{"$f":"CONCATENATE(A3, B3, C3, D3, E3)","v":"const int FEAT_ARENA_MAGE_SPELLCASTING_ASSASSIN  =  25001;"}]
["const int ","FEAT_CERULEAN_SPELLCASTING_ASSASSIN","  =  ",{"$f":"SUM(D3+1)","v":25002},";","const int FEAT_CERULEAN_SPELLCASTING_ASSASSIN  =  25002;"]
["const int ","FEAT_CHASSEUR_SPELLCASTING_ASSASSIN","  =  ",25003,";","const int FEAT_CHASSEUR_SPELLCASTING_ASSASSIN  =  25003;"]
["const int ","FEAT_DEAD_HEART_SPELLCASTING_ASSASSIN","  =  ",25004,";","const int FEAT_DEAD_HEART_SPELLCASTING_ASSASSIN  =  25004;"]
["const int ","FEAT_HALFLING_PROTECTOR_SPELLCASTING_ASSASSIN","  =  ",25005,";","const int FEAT_HALFLING_PROTECTOR_SPELLCASTING_ASSASSIN  =  25005;"]
["const int ","FEAT_NECROMANT_SPELLCASTING_ASSASSIN","  =  ",25006,";","const int FEAT_NECROMANT_SPELLCASTING_ASSASSIN  =  25006;"]
["const int ","FEAT_RESTORATIONIST_SPELLCASTING_ASSASSIN","  =  ",25007,";","const int FEAT_RESTORATIONIST_SPELLCASTING_ASSASSIN  =  25007;"]
["const int ","FEAT_SHADOW_WIZARD_SPELLCASTING_ASSASSIN","  =  ",25008,";","const int FEAT_SHADOW_WIZARD_SPELLCASTING_ASSASSIN  =  25008;"]
["const int ","FEAT_VEILED_ONE_SPELLCASTING_ASSASSIN","  =  ",25009,";","const int FEAT_VEILED_ONE_SPELLCASTING_ASSASSIN  =  25009;"]
[{"$nulls":5},""]
[null,"//:: Dark Sun Cleric marker feats",{"$nulls":3},"//:: Dark Sun Cleric marker feats"]
["const int ","FEAT_AMBOFARI_SPELLCASTING_CLERIC","  =  ",{"$f":"SUM(D11+1)","v":25010},";","const int FEAT_AMBOFARI_SPELLCASTING_CLERIC  =  25010;"]
["const int ","FEAT_BATTLE_DANCER_SPELLCASTING_CLERIC","  =  ",{"$f":"SUM(D14+1)","v":25011},";","const int FEAT_BATTLE_DANCER_SPELLCASTING_CLERIC  =  25011;"]
["const int ","FEAT_BLACK_CASSOCK_SPELLCASTING_CLERIC","  =  ",25012,";","const int FEAT_BLACK_CASSOCK_SPELLCASTING_CLERIC  =  25012;"]
["const int ","FEAT_DRAKE_GUARDIAN_SPELLCASTING_CLERIC","  =  ",25013,";","const int FEAT_DRAKE_GUARDIAN_SPELLCASTING_CLERIC  =  25013;"]
["const int ","FEAT_ELEMENT_SINGER_SPELLCASTING_CLERIC","  =  ",25014,";","const int FEAT_ELEMENT_SINGER_SPELLCASTING_CLERIC  =  25014;"]
["const int ","FEAT_ELEMENTAL_MASTER_SPELLCASTING_CLERIC","  =  ",25015,";","const int FEAT_ELEMENTAL_MASTER_SPELLCASTING_CLERIC  =  25015;"]
["const int ","FEAT_ELEMENTALIST_SPELLCASTING_CLERIC","  =  ",25016,";","const int FEAT_ELEMENTALIST_SPELLCASTING_CLERIC  =  25016;"]
["const int ","FEAT_OBSTINATE_SOUL_SPELLCASTING_CLERIC","  =  ",25017,";","const int FEAT_OBSTINATE_SOUL_SPELLCASTING_CLERIC  =  25017;"]
[{"$nulls":5},""]
[null,"//:: Dark Sun Defiler marker feats",{"$nulls":3},"//:: Dark Sun Defiler marker feats"]
["const int ","FEAT_ABCHAMP_SPELLCASTING_DEFILER","  =  ",{"$f":"SUM(D21+1)","v":25018},";",{"$f":"CONCATENATE(A24, B24, C24, D24, E24)","v":"const int FEAT_ABCHAMP_SPELLCASTING_DEFILER  =  25018;"}]
["const int ","FEAT_ARCANIST_SPELLCASTING_DEFILER","  =  ",{"$f":"SUM(D24+1)","v":25019},";","const int FEAT_ARCANIST_SPELLCASTING_DEFILER  =  25019;"]
["const int ","FEAT_ARCH_DEFILER_SPELLCASTING_DEFILER","  =  ",25020,";","const int FEAT_ARCH_DEFILER_SPELLCASTING_DEFILER  =  25020;"]
["const int ","FEAT_ARCHMAGE_SPELLCASTING_DEFILER","  =  ",25021,";","const int FEAT_ARCHMAGE_SPELLCASTING_DEFILER  =  25021;"]
["const int ","FEAT_ARCTRICK_SPELLCASTING_DEFILER","  =  ",25022,";","const int FEAT_ARCTRICK_SPELLCASTING_DEFILER  =  25022;"]
["const int ","FEAT_ARENA_MAGE_SPELLCASTING_DEFILER","  =  ",25023,";","const int FEAT_ARENA_MAGE_SPELLCASTING_DEFILER  =  25023;"]
["const int ","FEAT_BONDED_SPELLCASTING_DEFILER","  =  ",25024,";","const int FEAT_BONDED_SPELLCASTING_DEFILER  =  25024;"]
["const int ","FEAT_CERULEAN_SPELLCASTING_DEFILER","  =  ",25025,";","const int FEAT_CERULEAN_SPELLCASTING_DEFILER  =  25025;"]
["const int ","FEAT_CHASSEUR_SPELLCASTING_DEFILER","  =  ",25026,";","const int FEAT_CHASSEUR_SPELLCASTING_DEFILER  =  25026;"]
["const int ","FEAT_CMANCER_SPELLCASTING_DEFILER","  =  ",25027,";","const int FEAT_CMANCER_SPELLCASTING_DEFILER  =  25027;"]
["const int ","FEAT_DEAD_HEART_SPELLCASTING_DEFILER","  =  ",25028,";","const int FEAT_DEAD_HEART_SPELLCASTING_DEFILER  =  25028;"]
["const int ","FEAT_ELESAVANT_SPELLCASTING_DEFILER","  =  ",25029,";","const int FEAT_ELESAVANT_SPELLCASTING_DEFILER  =  25029;"]
["const int ","FEAT_LEECH_SPELLCASTING_DEFILER","  =  ",25030,";","const int FEAT_LEECH_SPELLCASTING_DEFILER  =  25030;"]
["const int ","FEAT_MASTER_ALCHEMIST_SPELLCASTING_DEFILER","  =  ",25031,";","const int FEAT_MASTER_ALCHEMIST_SPELLCASTING_DEFILER  =  25031;"]
["const int ","FEAT_MONARCHS_CHOSEN_SPELLCASTING_DEFILER","  =  ",25032,";","const int FEAT_MONARCHS_CHOSEN_SPELLCASTING_DEFILER  =  25032;"]
["const int ","FEAT_MYRMELEON_SPELLCASTING_DEFILER","  =  ",25033,";",{"$f":"CONCATENATE(A39, B39, C39, D39, E39)","v":"const int FEAT_MYRMELEON_SPELLCASTING_DEFILER  =  25033;"}]
["const int ","FEAT_MYSTIC_SPELLCASTING_DEFILER","  =  ",25034,";","const int FEAT_MYSTIC_SPELLCASTING_DEFILER  =  25034;"]
["const int ","FEAT_NECROMANT_SPELLCASTING_DEFILER","  =  ",25035,";","const int FEAT_NECROMANT_SPELLCASTING_DEFILER  =  25035;"]
["const int ","FEAT_PALEMASTER_SPELLCASTING_DEFILER","  =  ",25036,";","const int FEAT_PALEMASTER_SPELLCASTING_DEFILER  =  25036;"]
["const int ","FEAT_ROYAL_ANIMATOR_SPELLCASTING_DEFILER","  =  ",25037,";","const int FEAT_ROYAL_ANIMATOR_SPELLCASTING_DEFILER  =  25037;"]
["const int ","FEAT_SHADOW_WIZARD_SPELLCASTING_DEFILER","  =  ",25038,";","const int FEAT_SHADOW_WIZARD_SPELLCASTING_DEFILER  =  25038;"]
["const int ","FEAT_SPELLSWORD_SPELLCASTING_DEFILER","  =  ",25039,";","const int FEAT_SPELLSWORD_SPELLCASTING_DEFILER  =  25039;"]
["const int ","FEAT_TRUE_NECRO_SPELLCASTING_DEFILER","  =  ",25040,";","const int FEAT_TRUE_NECRO_SPELLCASTING_DEFILER  =  25040;"]
["const int ","FEAT_VEILED_ONE_SPELLCASTING_DEFILER","  =  ",25041,";","const int FEAT_VEILED_ONE_SPELLCASTING_DEFILER  =  25041;"]
["const int ","FEAT_VIRTUOSO_SPELLCASTING_DEFILER","  =  ",25042,";","const int FEAT_VIRTUOSO_SPELLCASTING_DEFILER  =  25042;"]
[]
[null,"//:: Dark Sun Druid marker feats",{"$nulls":3},{"$f":"CONCATENATE(A50, B50, C50, D50, E50)","v":"//:: Dark Sun Druid marker feats"}]
["const int ","FEAT_AMBOFARI_SPELLCASTING_DRUID","  =  ",{"$f":"SUM(D48+1)","v":25043},";","const int FEAT_AMBOFARI_SPELLCASTING_DRUID  =  25043;"]
["const int ","FEAT_DRAKE_GUARDIAN_SPELLCASTING_DRUID","  =  ",{"$f":"SUM(D51+1)","v":25044},";","const int FEAT_DRAKE_GUARDIAN_SPELLCASTING_DRUID  =  25044;"]
["const int ","FEAT_GROVE_MASTER_SPELLCASTING_DRUID","  =  ",25045,";","const int FEAT_GROVE_MASTER_SPELLCASTING_DRUID  =  25045;"]
["const int ","FEAT_OBSTINATE_SOUL_SPELLCASTING_DRUID","  =  ",25046,";","const int FEAT_OBSTINATE_SOUL_SPELLCASTING_DRUID  =  25046;"]
["const int ","FEAT_SPIRIT_INCARNATE_SPELLCASTING_DRUID","  =  ",25047,";","const int FEAT_SPIRIT_INCARNATE_SPELLCASTING_DRUID  =  25047;"]
[{"$nulls":5},""]
[null,"//:: Dark Sun Elemental Champion marker feats",{"$nulls":3},"//:: Dark Sun Elemental Champion marker feats"]
["const int ","FEAT_AMBOFARI_SPELLCASTING_ELECHAMP","  =  ",{"$f":"SUM(D55+1)","v":25048},";","const int FEAT_AMBOFARI_SPELLCASTING_ELECHAMP  =  25048;"]
["const int ","FEAT_BATTLE_DANCER_SPELLCASTING_ELECHAMP","  =  ",{"$f":"SUM(D58+1)","v":25049},";","const int FEAT_BATTLE_DANCER_SPELLCASTING_ELECHAMP  =  25049;"]
["const int ","FEAT_BLACK_CASSOCK_SPELLCASTING_ELECHAMP","  =  ",25050,";","const int FEAT_BLACK_CASSOCK_SPELLCASTING_ELECHAMP  =  25050;"]
["const int ","FEAT_COMBAT_MEDIC_SPELLCASTING_ELECHAMP","  =  ",25051,";","const int FEAT_COMBAT_MEDIC_SPELLCASTING_ELECHAMP  =  25051;"]
["const int ","FEAT_DRAKE_GUARDIAN_SPELLCASTING_ELECHAMP","  =  ",25052,";","const int FEAT_DRAKE_GUARDIAN_SPELLCASTING_ELECHAMP  =  25052;"]
["const int ","FEAT_ELEMENT_SINGER_SPELLCASTING_ELECHAMP","  =  ",25053,";","const int FEAT_ELEMENT_SINGER_SPELLCASTING_ELECHAMP  =  25053;"]
["const int ","FEAT_ELEMENTALIST_SPELLCASTING_ELECHAMP","  =  ",25054,";","const int FEAT_ELEMENTALIST_SPELLCASTING_ELECHAMP  =  25054;"]
["const int ","FEAT_MYSTIC_SPELLCASTING_ELECHAMP","  =  ",25055,";","const int FEAT_MYSTIC_SPELLCASTING_ELECHAMP  =  25055;"]
["const int ","FEAT_OBSTINATE_SOUL_SPELLCASTING_ELECHAMP","  =  ",25056,";","const int FEAT_OBSTINATE_SOUL_SPELLCASTING_ELECHAMP  =  25056;"]
["const int ","FEAT_OOZEMASTER_SPELLCASTING_ELECHAMP","  =  ",25057,";","const int FEAT_OOZEMASTER_SPELLCASTING_ELECHAMP  =  25057;"]
["const int ","FEAT_PSYCHIC_THEURGE_SPELLCASTING_ELECHAMP","  =  ",25058,";","const int FEAT_PSYCHIC_THEURGE_SPELLCASTING_ELECHAMP  =  25058;"]
["const int ","FEAT_TRUE_NECRO_SPELLCASTING_ELECHAMP","  =  ",25059,";","const int FEAT_TRUE_NECRO_SPELLCASTING_ELECHAMP  =  25059;"]
["const int ","FEAT_WARPRIEST_SPELLCASTING_ELECHAMP","  =  ",25060,";","const int FEAT_WARPRIEST_SPELLCASTING_ELECHAMP  =  25060;"]
[{"$nulls":5},""]
[null,"//:: Dark Sun Preserver marker feats",{"$nulls":3},"//:: Dark Sun Preserver marker feats"]
["const int ","FEAT_ARCANIST_SPELLCASTING_PRESERVER","  =  ",{"$f":"SUM(D70+1)","v":25061},";","const int FEAT_ARCANIST_SPELLCASTING_PRESERVER  =  25061;"]
["const int ","FEAT_ARENA_MAGE_SPELLCASTING_PRESERVER","  =  ",{"$f":"SUM(D73+1)","v":25062},";","const int FEAT_ARENA_MAGE_SPELLCASTING_PRESERVER  =  25062;"]
["const int ","FEAT_CERULEAN_SPELLCASTING_PRESERVER","  =  ",25063,";","const int FEAT_CERULEAN_SPELLCASTING_PRESERVER  =  25063;"]
["const int ","FEAT_CHASSEUR_SPELLCASTING_PRESERVER","  =  ",25064,";","const int FEAT_CHASSEUR_SPELLCASTING_PRESERVER  =  25064;"]
["const int ","FEAT_DEAD_HEART_SPELLCASTING_PRESERVER","  =  ",25065,";","const int FEAT_DEAD_HEART_SPELLCASTING_PRESERVER  =  25065;"]
["const int ","FEAT_EARTH_DEFENDER_SPELLCASTING_PRESERVER","  =  ",25066,";","const int FEAT_EARTH_DEFENDER_SPELLCASTING_PRESERVER  =  25066;"]
["const int ","FEAT_HALFLING_PROTECTOR_SPELLCASTING_PRESERVER","  =  ",25067,";","const int FEAT_HALFLING_PROTECTOR_SPELLCASTING_PRESERVER  =  25067;"]
["const int ","FEAT_NECROMANT_SPELLCASTING_PRESERVER","  =  ",25068,";","const int FEAT_NECROMANT_SPELLCASTING_PRESERVER  =  25068;"]
["const int ","FEAT_RESTORATIONIST_SPELLCASTING_PRESERVER","  =  ",25069,";","const int FEAT_RESTORATIONIST_SPELLCASTING_PRESERVER  =  25069;"]
["const int ","FEAT_SHADOW_WIZARD_SPELLCASTING_PRESERVER","  =  ",25070,";",{"$f":"CONCATENATE(A82, B82, C82, D82, E82)","v":"const int FEAT_SHADOW_WIZARD_SPELLCASTING_PRESERVER  =  25070;"}]
["const int ","FEAT_VEILED_ONE_SPELLCASTING_PRESERVER","  =  ",25071,";","const int FEAT_VEILED_ONE_SPELLCASTING_PRESERVER  =  25071;"]
[{"$nulls":5},""]
[null,"//:: Dark Sun Ranger marker feats",{"$nulls":3},"//:: Dark Sun Ranger marker feats"]
["const int ","FEAT_AMBOFARI_SPELLCASTING_RANGER","  =  ",{"$f":"SUM(D83+1)","v":25072},";","const int FEAT_AMBOFARI_SPELLCASTING_RANGER  =  25072;"]
["const int ","FEAT_BLACK_CASSOCK_SPELLCASTING_RANGER","  =  ",{"$f":"SUM(D86+1)","v":25073},";","const int FEAT_BLACK_CASSOCK_SPELLCASTING_RANGER  =  25073;"]
["const int ","FEAT_DRAKE_GUARDIAN_SPELLCASTING_RANGER","  =  ",25074,";","const int FEAT_DRAKE_GUARDIAN_SPELLCASTING_RANGER  =  25074;"]
["const int ","FEAT_OBSTINATE_SOUL_SPELLCASTING_RANGER","  =  ",25075,";","const int FEAT_OBSTINATE_SOUL_SPELLCASTING_RANGER  =  25075;"]
["const int ","FEAT_SPIRIT_INCARNATE_SPELLCASTING_RANGER","  =  ",25076,";","const int FEAT_SPIRIT_INCARNATE_SPELLCASTING_RANGER  =  25076;"]
[{"$nulls":5},""]
[null,"//:: Dark Sun Shadow Templar marker feats",{"$nulls":3},"//:: Dark Sun Shadow Templar marker feats"]
["const int ","FEAT_ABCHAMP_SPELLCASTING_SHADOWTEMP","  =  ",{"$f":"SUM(D90+1)","v":25077},";","const int FEAT_ABCHAMP_SPELLCASTING_SHADOWTEMP  =  25077;"]
["const int ","FEAT_ARCANIST_SPELLCASTING_SHADOWTEMP","  =  ",{"$f":"SUM(D93+1)","v":25078},";","const int FEAT_ARCANIST_SPELLCASTING_SHADOWTEMP  =  25078;"]
["const int ","FEAT_ARCTRICK_SPELLCASTING_SHADOWTEMP","  =  ",25079,";","const int FEAT_ARCTRICK_SPELLCASTING_SHADOWTEMP  =  25079;"]
["const int ","FEAT_ARCHMAGE_SPELLCASTING_SHADOWTEMP","  =  ",25080,";","const int FEAT_ARCHMAGE_SPELLCASTING_SHADOWTEMP  =  25080;"]
["const int ","FEAT_ARENA_MAGE_SPELLCASTING_SHADOWTEMP","  =  ",25081,";","const int FEAT_ARENA_MAGE_SPELLCASTING_SHADOWTEMP  =  25081;"]
["const int ","FEAT_CMANCER_SPELLCASTING_SHADOWTEMP","  =  ",25082,";","const int FEAT_CMANCER_SPELLCASTING_SHADOWTEMP  =  25082;"]
["const int ","FEAT_CHASSEUR_SPELLCASTING_SHADOWTEMP","  =  ",25083,";","const int FEAT_CHASSEUR_SPELLCASTING_SHADOWTEMP  =  25083;"]
["const int ","FEAT_DEAD_HEART_SPELLCASTING_SHADOWTEMP","  =  ",25084,";","const int FEAT_DEAD_HEART_SPELLCASTING_SHADOWTEMP  =  25084;"]
["const int ","FEAT_ELESAVANT_SPELLCASTING_SHADOWTEMP","  =  ",25085,";","const int FEAT_ELESAVANT_SPELLCASTING_SHADOWTEMP  =  25085;"]
["const int ","FEAT_MASTER_ALCHEMIST_SPELLCASTING_SHADOWTEMP","  =  ",25086,";","const int FEAT_MASTER_ALCHEMIST_SPELLCASTING_SHADOWTEMP  =  25086;"]
["const int ","FEAT_MYSTIC_SPELLCASTING_SHADOWTEMP",null,25087]
["const int ","FEAT_NECROMANT_SPELLCASTING_SHADOWTEMP","  =  ",25088,";","const int FEAT_NECROMANT_SPELLCASTING_SHADOWTEMP  =  25088;"]
["const int ","FEAT_PALEMASTER_SPELLCASTING_SHADOWTEMP","  =  ",25089,";","const int FEAT_PALEMASTER_SPELLCASTING_SHADOWTEMP  =  25089;"]
["const int ","FEAT_SHADOW_WIZARD_SPELLCASTING_SHADOWTEMP","  =  ",25090,";","const int FEAT_SHADOW_WIZARD_SPELLCASTING_SHADOWTEMP  =  25090;"]
["const int ","FEAT_SPELLSWORD_SPELLCASTING_SHADOWTEMP","  =  ",25091,";","const int FEAT_SPELLSWORD_SPELLCASTING_SHADOWTEMP  =  25091;"]
["const int ","FEAT_TRUE_NECRO_SPELLCASTING_SHADOWTEMP","  =  ",25092,";","const int FEAT_TRUE_NECRO_SPELLCASTING_SHADOWTEMP  =  25092;"]
["const int ","FEAT_VIRTUOSO_SPELLCASTING_SHADOWTEMP","  =  ",25093,";","const int FEAT_VIRTUOSO_SPELLCASTING_SHADOWTEMP  =  25093;"]
[{"$nulls":5},""]
[null,"//:: Dark Sun Templar marker feats",{"$nulls":3},"//:: Dark Sun Templar marker feats"]
["const int ","FEAT_AMBOFARI_SPELLCASTING_TEMPLAR","  =  ",{"$f":"SUM(D109+1)","v":25094},";","const int FEAT_AMBOFARI_SPELLCASTING_TEMPLAR  =  25094;"]
["const int ","FEAT_COMBAT_MEDIC_SPELLCASTING_TEMPLAR","  =  ",{"$f":"SUM(D112+1)","v":25095},";","const int FEAT_COMBAT_MEDIC_SPELLCASTING_TEMPLAR  =  25095;"]
["const int ","FEAT_HIEROPHANT_SPELLCASTING_TEMPLAR","  =  ",25096,";","const int FEAT_HIEROPHANT_SPELLCASTING_TEMPLAR  =  25096;"]
["const int ","FEAT_MOON_PRIEST_SPELLCASTING_TEMPLAR","  =  ",25097,";",{"$f":"CONCATENATE(A115, B115, C115, D115, E115)","v":"const int FEAT_MOON_PRIEST_SPELLCASTING_TEMPLAR  =  25097;"}]
["const int ","FEAT_MYSTIC_SPELLCASTING_TEMPLAR","  =  ",25098,";","const int FEAT_MYSTIC_SPELLCASTING_TEMPLAR  =  25098;"]
["const int ","FEAT_OBAS_SERVANT_SPELLCASTING_TEMPLAR","  =  ",25099,";","const int FEAT_OBAS_SERVANT_SPELLCASTING_TEMPLAR  =  25099;"]
["const int ","FEAT_OOZEMASTER_SPELLCASTING_TEMPLAR","  =  ",25100,";","const int FEAT_OOZEMASTER_SPELLCASTING_TEMPLAR  =  25100;"]
["const int ","FEAT_PSYCHIC_THEURGE_SPELLCASTING_TEMPLAR","  =  ",25101,";","const int FEAT_PSYCHIC_THEURGE_SPELLCASTING_TEMPLAR  =  25101;"]
["const int ","FEAT_SERVANT_OF_BADNA_SPELLCASTING_TEMPLAR","  =  ",25102,";","const int FEAT_SERVANT_OF_BADNA_SPELLCASTING_TEMPLAR  =  25102;"]
["const int ","FEAT_TEMPLAR_OF_THE_SCALE_SPELLCASTING_TEMPLAR","  =  ",25103,";","const int FEAT_TEMPLAR_OF_THE_SCALE_SPELLCASTING_TEMPLAR  =  25103;"]
["const int ","FEAT_TRUE_NECRO_SPELLCASTING_TEMPLAR","  =  ",25104,";","const int FEAT_TRUE_NECRO_SPELLCASTING_TEMPLAR  =  25104;"]
["const int ","FEAT_WARPRIEST_SPELLCASTING_TEMPLAR","  =  ",25105,";","const int FEAT_WARPRIEST_SPELLCASTING_TEMPLAR  =  25105;"]
["const int ","FEAT_WIFE_OF_NIBENAY_SPELLCASTING_TEMPLAR","  =  ",25106,";","const int FEAT_WIFE_OF_NIBENAY_SPELLCASTING_TEMPLAR  =  25106;"]
["const int ","FEAT_YELLOW_ROBE_SPELLCASTING_TEMPLAR","  =  ",25107,";","const int FEAT_YELLOW_ROBE_SPELLCASTING_TEMPLAR  =  25107;"]
[{"$nulls":5},""]
[null,"//:: Dark Sun Templar Knight marker feats",{"$nulls":3},"//:: Dark Sun Templar Knight marker feats"]
["const int ","FEAT_AMBOFARI_SPELLCASTING_TEMP_KNIGHT","  =  ",{"$f":"SUM(D125+1)","v":25108},";","const int FEAT_AMBOFARI_SPELLCASTING_TEMP_KNIGHT  =  25108;"]
["const int ","FEAT_COMBAT_MEDIC_SPELLCASTING_TEMP_KNIGHT","  =  ",{"$f":"SUM(D128+1)","v":25109},";","const int FEAT_COMBAT_MEDIC_SPELLCASTING_TEMP_KNIGHT  =  25109;"]
["const int ","FEAT_MYSTIC_SPELLCASTING_TEMP_KNIGHT","  =  ",25110,";","const int FEAT_MYSTIC_SPELLCASTING_TEMP_KNIGHT  =  25110;"]
["const int ","FEAT_OOZEMASTER_SPELLCASTING_TEMP_KNIGHT","  =  ",25111,";","const int FEAT_OOZEMASTER_SPELLCASTING_TEMP_KNIGHT  =  25111;"]
["const int ","FEAT_PSYCHIC_THEURGE_SPELLCASTING_TEMP_KNIGHT","  =  ",25112,";","const int FEAT_PSYCHIC_THEURGE_SPELLCASTING_TEMP_KNIGHT  =  25112;"]
["const int ","FEAT_WARPRIEST_SPELLCASTING_TEMP_KNIGHT","  =  ",25113,";","const int FEAT_WARPRIEST_SPELLCASTING_TEMP_KNIGHT  =  25113;"]
[]
[null,"//:: Dark Sun Psion marker feats",{"$nulls":3},{"$f":"CONCATENATE(A135, B135, C135, D135, E135)","v":"//:: Dark Sun Psion marker feats"}]
["const int ","FEAT_AMBOFARI_MANIFESTING_PSION","  =  ",{"$f":"SUM(D133+1)","v":25114},";","const int FEAT_AMBOFARI_MANIFESTING_PSION  =  25114;"]
["const int ","FEAT_AUDITOR_MANIFESTING_PSION","  =  ",{"$f":"SUM(D136+1)","v":25115},";",{"$f":"CONCATENATE(A137, B137, C137, D137, E137)","v":"const int FEAT_AUDITOR_MANIFESTING_PSION  =  25115;"}]
["const int ","FEAT_CORNAC_MANIFESTING_PSION","  =  ",25116,";",{"$f":"CONCATENATE(A138, B138, C138, D138, E138)","v":"const int FEAT_CORNAC_MANIFESTING_PSION  =  25116;"}]
["const int ","FEAT_DEAD_HEART_MANIFESTING_PSION","  =  ",25117,";","const int FEAT_DEAD_HEART_MANIFESTING_PSION  =  25117;"]
["const int ","FEAT_DRAKE_GUARDIAN_MANIFESTING_PSION","  =  ",25118,";","const int FEAT_DRAKE_GUARDIAN_MANIFESTING_PSION  =  25118;"]
["const int ","FEAT_KREEN_SLAYER_MANIFESTING_PSION","  =  ",25119,";","const int FEAT_KREEN_SLAYER_MANIFESTING_PSION  =  25119;"]
["const int ","FEAT_MASTER_SHIPFLOATER_MANIFESTING_PSION","  =  ",25120,";","const int FEAT_MASTER_SHIPFLOATER_MANIFESTING_PSION  =  25120;"]
["const int ","FEAT_OBSTINATE_SOUL_MANIFESTING_PSION","  =  ",25121,";","const int FEAT_OBSTINATE_SOUL_MANIFESTING_PSION  =  25121;"]
["const int ","FEAT_PSIOLOGIST_MANIFESTING_PSION","  =  ",25122,";","const int FEAT_PSIOLOGIST_MANIFESTING_PSION  =  25122;"]
["const int ","FEAT_SCION_OF_THE_WORM_MANIFESTING_PSION","  =  ",25123,";","const int FEAT_SCION_OF_THE_WORM_MANIFESTING_PSION  =  25123;"]
["const int ","FEAT_SENSEI_MANIFESTING_PSION","  =  ",25124,";","const int FEAT_SENSEI_MANIFESTING_PSION  =  25124;"]
["const int ","FEAT_TATTOOIST_MANIFESTING_PSION","  =  ",25125,";","const int FEAT_TATTOOIST_MANIFESTING_PSION  =  25125;"]
["const int ","FEAT_TEKCHAKAK_MANIFESTING_PSION","  =  ",25126,";","const int FEAT_TEKCHAKAK_MANIFESTING_PSION  =  25126;"]
["const int ","FEAT_TRIBAL_PSIONICIST_MANIFESTING_PSION","  =  ",25127,";","const int FEAT_TRIBAL_PSIONICIST_MANIFESTING_PSION  =  25127;"]
[{"$nulls":5},""]
[null,"//:: Dark Sun Psychic Rogue marker feats",{"$nulls":3},"//:: Dark Sun Psychic Rogue marker feats"]
["const int ","FEAT_AMBOFARI_MANIFESTING_PSYROGUE","  =  ",{"$f":"SUM(D149+1)","v":25128},";",{"$f":"CONCATENATE(A152, B152, C152, D152, E152)","v":"const int FEAT_AMBOFARI_MANIFESTING_PSYROGUE  =  25128;"}]
["const int ","FEAT_AUDITOR_MANIFESTING_PSYROGUE","  =  ",{"$f":"SUM(D152+1)","v":25129},";","const int FEAT_AUDITOR_MANIFESTING_PSYROGUE  =  25129;"]
["const int ","FEAT_CORNAC_MANIFESTING_PSYROGUE","  =  ",25130,";","const int FEAT_CORNAC_MANIFESTING_PSYROGUE  =  25130;"]
["const int ","FEAT_DEAD_HEART_MANIFESTING_PSYROGUE","  =  ",25131,";","const int FEAT_DEAD_HEART_MANIFESTING_PSYROGUE  =  25131;"]
["const int ","FEAT_DRAKE_GUARDIAN_MANIFESTING_PSYROGUE","  =  ",25132,";","const int FEAT_DRAKE_GUARDIAN_MANIFESTING_PSYROGUE  =  25132;"]
["const int ","FEAT_KREEN_SLAYER_MANIFESTING_PSYROGUE","  =  ",25133,";","const int FEAT_KREEN_SLAYER_MANIFESTING_PSYROGUE  =  25133;"]
["const int ","FEAT_MASTER_SHIPFLOATER_MANIFESTING_PSYROGUE","  =  ",25134,";","const int FEAT_MASTER_SHIPFLOATER_MANIFESTING_PSYROGUE  =  25134;"]
["const int ","FEAT_OBSTINATE_SOUL_MANIFESTING_PSYROGUE","  =  ",25135,";","const int FEAT_OBSTINATE_SOUL_MANIFESTING_PSYROGUE  =  25135;"]
["const int ","FEAT_PSIOLOGIST_MANIFESTING_PSYROGUE","  =  ",25136,";","const int FEAT_PSIOLOGIST_MANIFESTING_PSYROGUE  =  25136;"]
["const int ","FEAT_SCION_OF_THE_WORM_MANIFESTING_PSYROGUE","  =  ",25137,";","const int FEAT_SCION_OF_THE_WORM_MANIFESTING_PSYROGUE  =  25137;"]
["const int ","FEAT_SENSEI_MANIFESTING_PSYROGUE","  =  ",25138,";","const int FEAT_SENSEI_MANIFESTING_PSYROGUE  =  25138;"]
["const int ","FEAT_TATTOOIST_MANIFESTING_PSYROGUE","  =  ",25139,";","const int FEAT_TATTOOIST_MANIFESTING_PSYROGUE  =  25139;"]
["const int ","FEAT_TEKCHAKAK_MANIFESTING_PSYROGUE","  =  ",25140,";","const int FEAT_TEKCHAKAK_MANIFESTING_PSYROGUE  =  25140;"]
["const int ","FEAT_TRIBAL_PSIONICIST_MANIFESTING_PSYROGUE","  =  ",25141,";","const int FEAT_TRIBAL_PSIONICIST_MANIFESTING_PSYROGUE  =  25141;"]
[{"$nulls":5},""]
[null,"//:: Dark Sun Psychic Warrior marker feats",{"$nulls":3},"//:: Dark Sun Psychic Warrior marker feats"]
["const int ","FEAT_AMBOFARI_MANIFESTING_PSYWAR","  =  ",{"$f":"SUM(D165+1)","v":25142},";","const int FEAT_AMBOFARI_MANIFESTING_PSYWAR  =  25142;"]
["const int ","FEAT_AUDITOR_MANIFESTING_PSYWAR","  =  ",{"$f":"SUM(D168+1)","v":25143},";","const int FEAT_AUDITOR_MANIFESTING_PSYWAR  =  25143;"]
["const int ","FEAT_CORNAC_MANIFESTING_PSYWAR","  =  ",25144,";","const int FEAT_CORNAC_MANIFESTING_PSYWAR  =  25144;"]
["const int ","FEAT_DEAD_HEART_MANIFESTING_PSYWAR","  =  ",25145,";","const int FEAT_DEAD_HEART_MANIFESTING_PSYWAR  =  25145;"]
["const int ","FEAT_DRAKE_GUARDIAN_MANIFESTING_PSYWAR","  =  ",25146,";","const int FEAT_DRAKE_GUARDIAN_MANIFESTING_PSYWAR  =  25146;"]
["const int ","FEAT_KREEN_SLAYER_MANIFESTING_PSYWAR","  =  ",25147,";","const int FEAT_KREEN_SLAYER_MANIFESTING_PSYWAR  =  25147;"]
["const int ","FEAT_MASTER_SHIPFLOATER_MANIFESTING_PSYWAR","  =  ",25148,";","const int FEAT_MASTER_SHIPFLOATER_MANIFESTING_PSYWAR  =  25148;"]
["const int ","FEAT_OBSTINATE_SOUL_MANIFESTING_PSYWAR","  =  ",25149,";","const int FEAT_OBSTINATE_SOUL_MANIFESTING_PSYWAR  =  25149;"]
["const int ","FEAT_PSIOLOGIST_MANIFESTING_PSYWAR","  =  ",25150,";","const int FEAT_PSIOLOGIST_MANIFESTING_PSYWAR  =  25150;"]
["const int ","FEAT_SCION_OF_THE_WORM_MANIFESTING_PSYWAR","  =  ",25151,";","const int FEAT_SCION_OF_THE_WORM_MANIFESTING_PSYWAR  =  25151;"]
["const int ","FEAT_SENSEI_MANIFESTING_PSYWAR","  =  ",25152,";","const int FEAT_SENSEI_MANIFESTING_PSYWAR  =  25152;"]
["const int ","FEAT_TATTOOIST_MANIFESTING_PSYWAR","  =  ",25153,";","const int FEAT_TATTOOIST_MANIFESTING_PSYWAR  =  25153;"]
["const int ","FEAT_TEKCHAKAK_MANIFESTING_PSYWAR","  =  ",25154,";","const int FEAT_TEKCHAKAK_MANIFESTING_PSYWAR  =  25154;"]
["const int ","FEAT_TRIBAL_PSIONICIST_MANIFESTING_PSYWAR","  =  ",25155,";","const int FEAT_TRIBAL_PSIONICIST_MANIFESTING_PSYWAR  =  25155;"]
[]
[null,"//:: Dark Sun War Mind marker feats",{"$nulls":3},{"$f":"CONCATENATE(A183, B183, C183, D183, E183)","v":"//:: Dark Sun War Mind marker feats"}]
["const int ","FEAT_AMBOFARI_MANIFESTING_WARMIND","  =  ",{"$f":"SUM(D181+1)","v":25156},";","const int FEAT_AMBOFARI_MANIFESTING_WARMIND  =  25156;"]
["const int ","FEAT_AUDITOR_MANIFESTING_WARMIND","  =  ",{"$f":"SUM(D184+1)","v":25157},";","const int FEAT_AUDITOR_MANIFESTING_WARMIND  =  25157;"]
["const int ","FEAT_CORNAC_MANIFESTING_WARMIND","  =  ",25158,";","const int FEAT_CORNAC_MANIFESTING_WARMIND  =  25158;"]
["const int ","FEAT_DEAD_HEART_MANIFESTING_WARMIND","  =  ",25159,";","const int FEAT_DEAD_HEART_MANIFESTING_WARMIND  =  25159;"]
["const int ","FEAT_DRAKE_GUARDIAN_MANIFESTING_WARMIND","  =  ",25160,";","const int FEAT_DRAKE_GUARDIAN_MANIFESTING_WARMIND  =  25160;"]
["const int ","FEAT_KREEN_SLAYER_MANIFESTING_WARMIND","  =  ",25161,";","const int FEAT_KREEN_SLAYER_MANIFESTING_WARMIND  =  25161;"]
["const int ","FEAT_MASTER_SHIPFLOATER_MANIFESTING_WARMIND","  =  ",25162,";","const int FEAT_MASTER_SHIPFLOATER_MANIFESTING_WARMIND  =  25162;"]
["const int ","FEAT_OBSTINATE_SOUL_MANIFESTING_WARMIND","  =  ",25163,";","const int FEAT_OBSTINATE_SOUL_MANIFESTING_WARMIND  =  25163;"]
["const int ","FEAT_SCION_OF_THE_WORM_MANIFESTING_WARMIND","  =  ",25164,";","const int FEAT_SCION_OF_THE_WORM_MANIFESTING_WARMIND  =  25164;"]
["const int ","FEAT_SENSEI_MANIFESTING_WARMIND","  =  ",25165,";","const int FEAT_SENSEI_MANIFESTING_WARMIND  =  25165;"]
["const int ","FEAT_TATTOOIST_MANIFESTING_WARMIND","  =  ",25166,";","const int FEAT_TATTOOIST_MANIFESTING_WARMIND  =  25166;"]
["const int ","FEAT_TEKCHAKAK_MANIFESTING_WARMIND","  =  ",25167,";","const int FEAT_TEKCHAKAK_MANIFESTING_WARMIND  =  25167;"]
["const int ","FEAT_TRIBAL_PSIONICIST_MANIFESTING_WARMIND","  =  ",25168,";","const int FEAT_TRIBAL_PSIONICIST_MANIFESTING_WARMIND  =  25168;"]
[{"$nulls":5},""]
[null,"//:: Dark Sun Wilder marker feats",{"$nulls":3},"//:: Dark Sun Wilder marker feats"]
["const int ","FEAT_AMBOFARI_MANIFESTING_WILDER","  =  ",{"$f":"SUM(D196+1)","v":25169},";",{"$f":"CONCATENATE(A199, B199, C199, D199, E199)","v":"const int FEAT_AMBOFARI_MANIFESTING_WILDER  =  25169;"}]
["const int ","FEAT_AUDITOR_MANIFESTING_WILDER","  =  ",{"$f":"SUM(D199+1)","v":25170},";","const int FEAT_AUDITOR_MANIFESTING_WILDER  =  25170;"]
["const int ","FEAT_CORNAC_MANIFESTING_WILDER","  =  ",25171,";","const int FEAT_CORNAC_MANIFESTING_WILDER  =  25171;"]
["const int ","FEAT_DEAD_HEART_MANIFESTING_WILDER","  =  ",25172,";","const int FEAT_DEAD_HEART_MANIFESTING_WILDER  =  25172;"]
["const int ","FEAT_DRAKE_GUARDIAN_MANIFESTING_WILDER","  =  ",25173,";","const int FEAT_DRAKE_GUARDIAN_MANIFESTING_WILDER  =  25173;"]
["const int ","FEAT_KREEN_SLAYER_MANIFESTING_WILDER","  =  ",25174,";","const int FEAT_KREEN_SLAYER_MANIFESTING_WILDER  =  25174;"]
["const int ","FEAT_MASTER_SHIPFLOATER_MANIFESTING_WILDER","  =  ",25175,";","const int FEAT_MASTER_SHIPFLOATER_MANIFESTING_WILDER  =  25175;"]
["const int ","FEAT_OBSTINATE_SOUL_MANIFESTING_WILDER","  =  ",25176,";","const int FEAT_OBSTINATE_SOUL_MANIFESTING_WILDER  =  25176;"]
["const int ","FEAT_PSIOLOGIST_MANIFESTING_WILDER","  =  ",25177,";","const int FEAT_PSIOLOGIST_MANIFESTING_WILDER  =  25177;"]
["const int ","FEAT_SCION_OF_THE_WORM_MANIFESTING_WILDER","  =  ",25178,";","const int FEAT_SCION_OF_THE_WORM_MANIFESTING_WILDER  =  25178;"]
["const int ","FEAT_SENSEI_MANIFESTING_WILDER","  =  ",25179,";","const int FEAT_SENSEI_MANIFESTING_WILDER  =  25179;"]
["const int ","FEAT_TATTOOIST_MANIFESTING_WILDER","  =  ",25180,";","const int FEAT_TATTOOIST_MANIFESTING_WILDER  =  25180;"]
["const int ","FEAT_TEKCHAKAK_MANIFESTING_WILDER","  =  ",25181,";","const int FEAT_TEKCHAKAK_MANIFESTING_WILDER  =  25181;"]
["const int ","FEAT_TRIBAL_PSIONICIST_MANIFESTING_WILDER","  =  ",25182,";","const int FEAT_TRIBAL_PSIONICIST_MANIFESTING_WILDER  =  25182;"]
[]
[null,"//:: Dark Sun Bard marker feats",{"$nulls":3},{"$f":"CONCATENATE(A214, B214, C214, D214, E214)","v":"//:: Dark Sun Bard marker feats"}]
["const int ","FEAT_ABCHAMP_SPELLCASTING_ATHBARD","  =  ",{"$f":"SUM(D212+1)","v":25183},";","const int FEAT_ABCHAMP_SPELLCASTING_ATHBARD  =  25183;"]
["const int ","FEAT_ARCANIST_SPELLCASTING_ATHBARD","  =  ",{"$f":"SUM(D215+1)","v":25184},";","const int FEAT_ARCANIST_SPELLCASTING_ATHBARD  =  25184;"]
["const int ","FEAT_ARCHMAGE_SPELLCASTING_ATHBARD","  =  ",25185,";","const int FEAT_ARCHMAGE_SPELLCASTING_ATHBARD  =  25185;"]
["const int ","FEAT_ARCTRICK_SPELLCASTING_ATHBARD","  =  ",25186,";","const int FEAT_ARCTRICK_SPELLCASTING_ATHBARD  =  25186;"]
["const int ","FEAT_ARENA_MAGE_SPELLCASTING_ATHBARD","  =  ",25187,";","const int FEAT_ARENA_MAGE_SPELLCASTING_ATHBARD  =  25187;"]
["const int ","FEAT_CERULEAN_SPELLCASTING_ATHBARD","  =  ",25188,";","const int FEAT_CERULEAN_SPELLCASTING_ATHBARD  =  25188;"]
["const int ","FEAT_CHASSEUR_SPELLCASTING_ATHBARD","  =  ",25189,";","const int FEAT_CHASSEUR_SPELLCASTING_ATHBARD  =  25189;"]
["const int ","FEAT_CMANCER_SPELLCASTING_ATHBARD","  =  ",25190,";","const int FEAT_CMANCER_SPELLCASTING_ATHBARD  =  25190;"]
["const int ","FEAT_DEAD_HEART_SPELLCASTING_ATHBARD","  =  ",25191,";","const int FEAT_DEAD_HEART_SPELLCASTING_ATHBARD  =  25191;"]
["const int ","FEAT_EARTH_DEFENDER_SPELLCASTING_ATHBARD","  =  ",25192,";","const int FEAT_EARTH_DEFENDER_SPELLCASTING_ATHBARD  =  25192;"]
["const int ","FEAT_ELESAVANT_SPELLCASTING_ATHBARD","  =  ",25193,";","const int FEAT_ELESAVANT_SPELLCASTING_ATHBARD  =  25193;"]
["const int ","FEAT_HALFLING_PROTECTOR_SPELLCASTING_ATHBARD","  =  ",25194,";","const int FEAT_HALFLING_PROTECTOR_SPELLCASTING_ATHBARD  =  25194;"]
["const int ","FEAT_MASTER_ALCHEMIST_SPELLCASTING_ATHBARD","  =  ",25195,";","const int FEAT_MASTER_ALCHEMIST_SPELLCASTING_ATHBARD  =  25195;"]
["const int ","FEAT_MYSTIC_SPELLCASTING_ATHBARD","  =  ",25196,";",{"$f":"CONCATENATE(A228, B228, C228, D228, E228)","v":"const int FEAT_MYSTIC_SPELLCASTING_ATHBARD  =  25196;"}]
["const int ","FEAT_NECROMANT_SPELLCASTING_ATHBARD","  =  ",25197,";","const int FEAT_NECROMANT_SPELLCASTING_ATHBARD  =  25197;"]
["const int ","FEAT_PALEMASTER_SPELLCASTING_ATHBARD","  =  ",25198,";","const int FEAT_PALEMASTER_SPELLCASTING_ATHBARD  =  25198;"]
["const int ","FEAT_RESTORATIONIST_SPELLCASTING_ATHBARD","  =  ",25199,";","const int FEAT_RESTORATIONIST_SPELLCASTING_ATHBARD  =  25199;"]
["const int ","FEAT_SHADOW_WIZARD_SPELLCASTING_ATHBARD","  =  ",25200,";","const int FEAT_SHADOW_WIZARD_SPELLCASTING_ATHBARD  =  25200;"]
["const int ","FEAT_SPELLSWORD_SPELLCASTING_ATHBARD","  =  ",25201,";","const int FEAT_SPELLSWORD_SPELLCASTING_ATHBARD  =  25201;"]
["const int ","FEAT_TRUE_NECRO_SPELLCASTING_ATHBARD","  =  ",25202,";","const int FEAT_TRUE_NECRO_SPELLCASTING_ATHBARD  =  25202;"]
["const int ","FEAT_VEILED_ONE_SPELLCASTING_ATHBARD","  =  ",25203,";","const int FEAT_VEILED_ONE_SPELLCASTING_ATHBARD  =  25203;"]
["const int ","FEAT_VIRTUOSO_SPELLCASTING_ATHBARD","  =  ",25204,";","const int FEAT_VIRTUOSO_SPELLCASTING_ATHBARD  =  25204;"]
[]
[null,"//:: Dark Sun Rogue marker feats",{"$nulls":3},{"$f":"CONCATENATE(A238, B238, C238, D238, E238)","v":"//:: Dark Sun Rogue marker feats"}]
["const int ","FEAT_ABCHAMP_SPELLCASTING_ROGUE","  =  ",{"$f":"SUM(D236+1)","v":25205},";","const int FEAT_ABCHAMP_SPELLCASTING_ROGUE  =  25205;"]
["const int ","FEAT_ARCANIST_SPELLCASTING_ROGUE","  =  ",{"$f":"SUM(D239+1)","v":25206},";","const int FEAT_ARCANIST_SPELLCASTING_ROGUE  =  25206;"]
["const int ","FEAT_ARCHMAGE_SPELLCASTING_ROGUE","  =  ",25207,";","const int FEAT_ARCHMAGE_SPELLCASTING_ROGUE  =  25207;"]
["const int ","FEAT_ARCTRICK_SPELLCASTING_ROGUE","  =  ",25208,";","const int FEAT_ARCTRICK_SPELLCASTING_ROGUE  =  25208;"]
["const int ","FEAT_ARENA_MAGE_SPELLCASTING_ROGUE","  =  ",25209,";","const int FEAT_ARENA_MAGE_SPELLCASTING_ROGUE  =  25209;"]
["const int ","FEAT_CERULEAN_SPELLCASTING_ROGUE","  =  ",25210,";","const int FEAT_CERULEAN_SPELLCASTING_ROGUE  =  25210;"]
["const int ","FEAT_CHASSEUR_SPELLCASTING_ROGUE","  =  ",25211,";","const int FEAT_CHASSEUR_SPELLCASTING_ROGUE  =  25211;"]
["const int ","FEAT_CMANCER_SPELLCASTING_ROGUE","  =  ",25212,";","const int FEAT_CMANCER_SPELLCASTING_ROGUE  =  25212;"]
["const int ","FEAT_DEAD_HEART_SPELLCASTING_ROGUE","  =  ",25213,";","const int FEAT_DEAD_HEART_SPELLCASTING_ROGUE  =  25213;"]
["const int ","FEAT_EARTH_DEFENDER_SPELLCASTING_ROGUE","  =  ",25214,";","const int FEAT_EARTH_DEFENDER_SPELLCASTING_ROGUE  =  25214;"]
["const int ","FEAT_ELESAVANT_SPELLCASTING_ROGUE","  =  ",25215,";","const int FEAT_ELESAVANT_SPELLCASTING_ROGUE  =  25215;"]
["const int ","FEAT_HALFLING_PROTECTOR_SPELLCASTING_ROGUE","  =  ",25216,";","const int FEAT_HALFLING_PROTECTOR_SPELLCASTING_ROGUE  =  25216;"]
["const int ","FEAT_MASTER_ALCHEMIST_SPELLCASTING_ROGUE","  =  ",25217,";","const int FEAT_MASTER_ALCHEMIST_SPELLCASTING_ROGUE  =  25217;"]
["const int ","FEAT_MYSTIC_SPELLCASTING_ROGUE","  =  ",25218,null,"const int FEAT_MYSTIC_SPELLCASTING_ROGUE  =  25218"]
["const int ","FEAT_NECROMANT_SPELLCASTING_ROGUE","  =  ",25219,";","const int FEAT_NECROMANT_SPELLCASTING_ROGUE  =  25219;"]
["const int ","FEAT_PALEMASTER_SPELLCASTING_ROGUE","  =  ",25220,";","const int FEAT_PALEMASTER_SPELLCASTING_ROGUE  =  25220;"]
["const int ","FEAT_RESTORATIONIST_SPELLCASTING_ROGUE","  =  ",25221,";","const int FEAT_RESTORATIONIST_SPELLCASTING_ROGUE  =  25221;"]
["const int ","FEAT_SHADOW_WIZARD_SPELLCASTING_ROGUE","  =  ",25222,";","const int FEAT_SHADOW_WIZARD_SPELLCASTING_ROGUE  =  25222;"]
["const int ","FEAT_SPELLSWORD_SPELLCASTING_ROGUE","  =  ",25223,";","const int FEAT_SPELLSWORD_SPELLCASTING_ROGUE  =  25223;"]
["const int ","FEAT_TRUE_NECRO_SPELLCASTING_ROGUE","  =  ",25224,";","const int FEAT_TRUE_NECRO_SPELLCASTING_ROGUE  =  25224;"]
["const int ","FEAT_VEILED_ONE_SPELLCASTING_ROGUE","  =  ",25225,";","const int FEAT_VEILED_ONE_SPELLCASTING_ROGUE  =  25225;"]
["const int ","FEAT_VIRTUOSO_SPELLCASTING_ROGUE","  =  ",25226,";","const int FEAT_VIRTUOSO_SPELLCASTING_ROGUE  =  25226;"]
[]
[null,"//:: Missed Oozemaster marker feats",{"$nulls":3},{"$f":"CONCATENATE(A262, B262, C262, D262, E262)","v":"//:: Missed Oozemaster marker feats"}]
["const int ","FEAT_OOZEMASTER_SPELLCASTING_ATHBARD","  =  ",{"$f":"SUM(D260+1)","v":25227},";","const int FEAT_OOZEMASTER_SPELLCASTING_ATHBARD  =  25227;"]
["const int ","FEAT_OOZEMASTER_SPELLCASTING_ROGUE","  =  ",{"$f":"SUM(D263+1)","v":25228},";","const int FEAT_OOZEMASTER_SPELLCASTING_ROGUE  =  25228;"]
["const int ","FEAT_OOZEMASTER_SPELLCASTING_SHADOWTEMP","  =  ",25229,";","const int FEAT_OOZEMASTER_SPELLCASTING_SHADOWTEMP  =  25229;"]
["const int ","FEAT_OOZEMASTER_SPELLCASTING_DEFILER","  =  ",25230,";",{"$f":"CONCATENATE(A266, B266, C266, D266, E266)","v":"const int FEAT_OOZEMASTER_SPELLCASTING_DEFILER  =  25230;"}]

{"sheet":"Marker Feat TLK Work","index":1,"n_rows":231,"n_cols":7,"rows_kept":231}
["  <entry id=\"",215000,"\" lang=\"en\" sex=\"m\">","Arcanist Spellcasting (Assassin)","</entry>",{"$f":"CONCATENATE(A1,B1,C1,D1,E1)","v":"  <entry id=\"215000\" lang=\"en\" sex=\"m\">Arcanist Spellcasting (Assassin)</entry>"},"FEAT_ARCANIST_SPELLCASTING_ASSASSIN"]
["  <entry id=\"",215001,"\" lang=\"en\" sex=\"m\">","Arena Mage Spellcasting (Assassin)","</entry>",{"$f":"CONCATENATE(A2,B2,C2,D2,E2)","v":"  <entry id=\"215001\" lang=\"en\" sex=\"m\">Arena Mage Spellcasting (Assassin)</entry>"},"FEAT_ARENA_MAGE_SPELLCASTING_ASSASSIN"]
["  <entry id=\"",215002,"\" lang=\"en\" sex=\"m\">","Cerulean_Spellcasting (Assassin)","</entry>","  <entry id=\"215002\" lang=\"en\" sex=\"m\">Cerulean_Spellcasting (Assassin)</entry>","FEAT_CERULEAN_SPELLCASTING_ASSASSIN"]
["  <entry id=\"",215003,"\" lang=\"en\" sex=\"m\">","Chasseur Spellcasting (Assassin)","</entry>","  <entry id=\"215003\" lang=\"en\" sex=\"m\">Chasseur Spellcasting (Assassin)</entry>","FEAT_CHASSEUR_SPELLCASTING_ASSASSIN"]
["  <entry id=\"",215004,"\" lang=\"en\" sex=\"m\">","Dead Heart Interrorgator Spellcasting (Assassin)","</entry>",{"$f":"CONCATENATE(A5,B5,C5,D5,E5)","v":"  <entry id=\"215004\" lang=\"en\" sex=\"m\">Dead Heart Interrorgator Spellcasting (Assassin)</entry>"},"FEAT_DEAD_HEART_SPELLCASTING_ASSASSIN"]
["  <entry id=\"",215005,"\" lang=\"en\" sex=\"m\">","Halfling Protector Spellcasting (Assassin)","</entry>","  <entry id=\"215005\" lang=\"en\" sex=\"m\">Halfling Protector Spellcasting (Assassin)</entry>","FEAT_HALFLING_PROTECTOR_SPELLCASTING_ASSASSIN"]
["  <entry id=\"",215006,"\" lang=\"en\" sex=\"m\">","Necromant Spellcasting (Assassin)","</entry>","  <entry id=\"215006\" lang=\"en\" sex=\"m\">Necromant Spellcasting (Assassin)</entry>","FEAT_NECROMANT_SPELLCASTING_ASSASSIN"]
["  <entry id=\"",215007,"\" lang=\"en\" sex=\"m\">","Restorationist Spellcasting (Assassin)","</entry>","  <entry id=\"215007\" lang=\"en\" sex=\"m\">Restorationist Spellcasting (Assassin)</entry>","FEAT_RESTORATIONIST_SPELLCASTING_ASSASSIN"]
["  <entry id=\"",215008,"\" lang=\"en\" sex=\"m\">","Shadow Wizard Spellcasting (Assassin)","</entry>","  <entry id=\"215008\" lang=\"en\" sex=\"m\">Shadow Wizard Spellcasting (Assassin)</entry>","FEAT_SHADOW_WIZARD_SPELLCASTING_ASSASSIN"]
["  <entry id=\"",215009,"\" lang=\"en\" sex=\"m\">","Veiled One Spellcasting (Assassin)","</entry>","  <entry id=\"215009\" lang=\"en\" sex=\"m\">Veiled One Spellcasting (Assassin)</entry>","FEAT_VEILED_ONE_SPELLCASTING_ASSASSIN"]
["  <entry id=\"",215010,"\" lang=\"en\" sex=\"m\">","Ambofari Spellcasting (Cleric)","</entry>","  <entry id=\"215010\" lang=\"en\" sex=\"m\">Ambofari Spellcasting (Cleric)</entry>","FEAT_AMBOFARI_SPELLCASTING_CLERIC"]
["  <entry id=\"",215011,"\" lang=\"en\" sex=\"m\">","Battle Dancer Spellcasting (Cleric)","</entry>","  <entry id=\"215011\" lang=\"en\" sex=\"m\">Battle Dancer Spellcasting (Cleric)</entry>","FEAT_BATTLE_DANCER_SPELLCASTING_CLERIC"]
["  <entry id=\"",215012,"\" lang=\"en\" sex=\"m\">","Black Cassock Spellcasting (Cleric)","</entry>","  <entry id=\"215012\" lang=\"en\" sex=\"m\">Black Cassock Spellcasting (Cleric)</entry>","FEAT_BLACK_CASSOCK_SPELLCASTING_CLERIC"]
["  <entry id=\"",215013,"\" lang=\"en\" sex=\"m\">","Drake Guardian Spellcasting (Cleric)","</entry>","  <entry id=\"215013\" lang=\"en\" sex=\"m\">Drake Guardian Spellcasting (Cleric)</entry>","FEAT_DRAKE_GUARDIAN_SPELLCASTING_CLERIC"]
["  <entry id=\"",215014,"\" lang=\"en\" sex=\"m\">","Element Singer Spellcasting (Cleric)","</entry>","  <entry id=\"215014\" lang=\"en\" sex=\"m\">Element Singer Spellcasting (Cleric)</entry>","FEAT_ELEMENT_SINGER_SPELLCASTING_CLERIC"]
["  <entry id=\"",215015,"\" lang=\"en\" sex=\"m\">","Elemental Master Spellcasting (Cleric)","</entry>","  <entry id=\"215015\" lang=\"en\" sex=\"m\">Elemental Master Spellcasting (Cleric)</entry>","FEAT_ELEMENTAL_MASTER_SPELLCASTING_CLERIC"]
["  <entry id=\"",215016,"\" lang=\"en\" sex=\"m\">","Elementalist Spellcasting (Cleric)","</entry>","  <entry id=\"215016\" lang=\"en\" sex=\"m\">Elementalist Spellcasting (Cleric)</entry>","FEAT_ELEMENTALIST_SPELLCASTING_CLERIC"]
["  <entry id=\"",215017,"\" lang=\"en\" sex=\"m\">","Obstinate Soul Spellcasting (Cleric)","</entry>","  <entry id=\"215017\" lang=\"en\" sex=\"m\">Obstinate Soul Spellcasting (Cleric)</entry>","FEAT_OBSTINATE_SOUL_SPELLCASTING_CLERIC"]
["  <entry id=\"",215018,"\" lang=\"en\" sex=\"m\">","Abjurant Champion Spellcasting (Defiler)","</entry>","  <entry id=\"215018\" lang=\"en\" sex=\"m\">Abjurant Champion Spellcasting (Defiler)</entry>","FEAT_ABCHAMP_SPELLCASTING_DEFILER"]
["  <entry id=\"",215019,"\" lang=\"en\" sex=\"m\">","Arcanist Spellcasting (Defiler)","</entry>",{"$f":"CONCATENATE(A20,B20,C20,D20,E20)","v":"  <entry id=\"215019\" lang=\"en\" sex=\"m\">Arcanist Spellcasting (Defiler)</entry>"},"FEAT_ARCANIST_SPELLCASTING_DEFILER"]
["  <entry id=\"",215020,"\" lang=\"en\" sex=\"m\">","Arch Defiler Spellcasting (Defiler)","</entry>",{"$f":"CONCATENATE(A21,B21,C21,D21,E21)","v":"  <entry id=\"215020\" lang=\"en\" sex=\"m\">Arch Defiler Spellcasting (Defiler)</entry>"},"FEAT_ARCH_DEFILER_SPELLCASTING_DEFILER"]
["  <entry id=\"",215021,"\" lang=\"en\" sex=\"m\">","Archmage Spellcasting (Defiler)","</entry>",{"$f":"CONCATENATE(A22,B22,C22,D22,E22)","v":"  <entry id=\"215021\" lang=\"en\" sex=\"m\">Archmage Spellcasting (Defiler)</entry>"},"FEAT_ARCHMAGE_SPELLCASTING_DEFILER"]
["  <entry id=\"",215022,"\" lang=\"en\" sex=\"m\">","Arcane Trickster Spellcasting (Defiler)","</entry>","  <entry id=\"215022\" lang=\"en\" sex=\"m\">Arcane Trickster Spellcasting (Defiler)</entry>","FEAT_ARCTRICK_SPELLCASTING_DEFILER"]
["  <entry id=\"",215023,"\" lang=\"en\" sex=\"m\">","Arena Mage Spellcasting (Defiler)","</entry>","  <entry id=\"215023\" lang=\"en\" sex=\"m\">Arena Mage Spellcasting (Defiler)</entry>","FEAT_ARENA_MAGE_SPELLCASTING_DEFILER"]
["  <entry id=\"",215024,"\" lang=\"en\" sex=\"m\">","Bonded Summoner Spellcasting (Defiler)","</entry>","  <entry id=\"215024\" lang=\"en\" sex=\"m\">Bonded Summoner Spellcasting (Defiler)</entry>","FEAT_BONDED_SPELLCASTING_DEFILER"]
["  <entry id=\"",215025,"\" lang=\"en\" sex=\"m\">","Cerulean Spellcaster (Defiler)","</entry>","  <entry id=\"215025\" lang=\"en\" sex=\"m\">Cerulean Spellcaster (Defiler)</entry>","FEAT_CERULEAN_SPELLCASTING_DEFILER"]
["  <entry id=\"",215026,"\" lang=\"en\" sex=\"m\">","Chasseur Spellcasting (Defiler)","</entry>","  <entry id=\"215026\" lang=\"en\" sex=\"m\">Chasseur Spellcasting (Defiler)</entry>","FEAT_CHASSEUR_SPELLCASTING_DEFILER"]
["  <entry id=\"",215027,"\" lang=\"en\" sex=\"m\">","Cerebremancer Spellcasting (Defiler)","</entry>",{"$f":"CONCATENATE(A28,B28,C28,D28,E28)","v":"  <entry id=\"215027\" lang=\"en\" sex=\"m\">Cerebremancer Spellcasting (Defiler)</entry>"},"FEAT_CMANCER_SPELLCASTING_DEFILER"]
["  <entry id=\"",215028,"\" lang=\"en\" sex=\"m\">","Dead Heart Interrorgator Spellcasting (Defiler)","</entry>","  <entry id=\"215028\" lang=\"en\" sex=\"m\">Dead Heart Interrorgator Spellcasting (Defiler)</entry>","FEAT_DEAD_HEART_SPELLCASTING_DEFILER"]
["  <entry id=\"",215029,"\" lang=\"en\" sex=\"m\">","Elemental Savant Spellcasting (Defiler)","</entry>","  <entry id=\"215029\" lang=\"en\" sex=\"m\">Elemental Savant Spellcasting (Defiler)</entry>","FEAT_ELESAVANT_SPELLCASTING_DEFILER"]
["  <entry id=\"",215030,"\" lang=\"en\" sex=\"m\">","Leech Spellcasting (Defiler)","</entry>","  <entry id=\"215030\" lang=\"en\" sex=\"m\">Leech Spellcasting (Defiler)</entry>","FEAT_LEECH_SPELLCASTING_DEFILER"]
["  <entry id=\"",215031,"\" lang=\"en\" sex=\"m\">","Master Alchemist Spellcasting (Defiler)","</entry>","  <entry id=\"215031\" lang=\"en\" sex=\"m\">Master Alchemist Spellcasting (Defiler)</entry>","FEAT_MASTER_ALCHEMIST_SPELLCASTING_DEFILER"]
["  <entry id=\"",215032,"\" lang=\"en\" sex=\"m\">","Monarch's Chosen Spellcasting (Defiler)","</entry>","  <entry id=\"215032\" lang=\"en\" sex=\"m\">Monarch's Chosen Spellcasting (Defiler)</entry>","FEAT_MONARCHS_CHOSEN_SPELLCASTING_DEFILER"]
["  <entry id=\"",215033,"\" lang=\"en\" sex=\"m\">","Myrmeleon Spellcasting (Defiler)","</entry>","  <entry id=\"215033\" lang=\"en\" sex=\"m\">Myrmeleon Spellcasting (Defiler)</entry>","FEAT_MYRMELEON_SPELLCASTING_DEFILER"]
["  <entry id=\"",215034,"\" lang=\"en\" sex=\"m\">","Mystic Theurge Spellcasting (Defiler)","</entry>",{"$f":"CONCATENATE(A35,B35,C35,D35,E35)","v":"  <entry id=\"215034\" lang=\"en\" sex=\"m\">Mystic Theurge Spellcasting (Defiler)</entry>"},"FEAT_MYSTIC_SPELLCASTING_DEFILER"]
["  <entry id=\"",215035,"\" lang=\"en\" sex=\"m\">","Necromant Spellcasting (Defiler)","</entry>","  <entry id=\"215035\" lang=\"en\" sex=\"m\">Necromant Spellcasting (Defiler)</entry>","FEAT_NECROMANT_SPELLCASTING_DEFILER"]
["  <entry id=\"",215036,"\" lang=\"en\" sex=\"m\">","Pale Master Spellcasting (Defiler)","</entry>","  <entry id=\"215036\" lang=\"en\" sex=\"m\">Pale Master Spellcasting (Defiler)</entry>","FEAT_PALEMASTER_SPELLCASTING_DEFILER"]
["  <entry id=\"",215037,"\" lang=\"en\" sex=\"m\">","Royal Animator Spellcasting (Defiler)","</entry>","  <entry id=\"215037\" lang=\"en\" sex=\"m\">Royal Animator Spellcasting (Defiler)</entry>","FEAT_ROYAL_ANIMATOR_SPELLCASTING_DEFILER"]
["  <entry id=\"",215038,"\" lang=\"en\" sex=\"m\">","Shadow Wizard Spellcasting (Defiler)","</entry>","  <entry id=\"215038\" lang=\"en\" sex=\"m\">Shadow Wizard Spellcasting (Defiler)</entry>","FEAT_SHADOW_WIZARD_SPELLCASTING_DEFILER"]
["  <entry id=\"",215039,"\" lang=\"en\" sex=\"m\">","Spellsword Spellcasting (Defiler)","</entry>",{"$f":"CONCATENATE(A40,B40,C40,D40,E40)","v":"  <entry id=\"215039\" lang=\"en\" sex=\"m\">Spellsword Spellcasting (Defiler)</entry>"},"FEAT_SPELLSWORD_SPELLCASTING_DEFILER"]
["  <entry id=\"",215040,"\" lang=\"en\" sex=\"m\">","True Necromancer Spellcasting (Defiler)","</entry>","  <entry id=\"215040\" lang=\"en\" sex=\"m\">True Necromancer Spellcasting (Defiler)</entry>","FEAT_TRUE_NECRO_SPELLCASTING_DEFILER"]
["  <entry id=\"",215041,"\" lang=\"en\" sex=\"m\">","Veiled One Spellcasting (Defiler)","</entry>",{"$f":"CONCATENATE(A42,B42,C42,D42,E42)","v":"  <entry id=\"215041\" lang=\"en\" sex=\"m\">Veiled One Spellcasting (Defiler)</entry>"},"FEAT_VEILED_ONE_SPELLCASTING_DEFILER"]
["  <entry id=\"",215042,"\" lang=\"en\" sex=\"m\">","Virtuoso Spellcasting (Defiler)","</entry>",{"$f":"CONCATENATE(A43,B43,C43,D43,E43)","v":"  <entry id=\"215042\" lang=\"en\" sex=\"m\">Virtuoso Spellcasting (Defiler)</entry>"},"FEAT_VIRTUOSO_SPELLCASTING_DEFILER"]
["  <entry id=\"",215043,"\" lang=\"en\" sex=\"m\">","Ambofari Spellcasting (Druid)","</entry>","  <entry id=\"215043\" lang=\"en\" sex=\"m\">Ambofari Spellcasting (Druid)</entry>"]
["  <entry id=\"",215044,"\" lang=\"en\" sex=\"m\">","Drake Guardian Spellcasting (Druid)","</entry>","  <entry id=\"215044\" lang=\"en\" sex=\"m\">Drake Guardian Spellcasting (Druid)</entry>"]
["  <entry id=\"",215045,"\" lang=\"en\" sex=\"m\">","Grove Master Spellcasting (Druid)","</entry>","  <entry id=\"215045\" lang=\"en\" sex=\"m\">Grove Master Spellcasting (Druid)</entry>"]
["  <entry id=\"",215046,"\" lang=\"en\" sex=\"m\">","Obstinate Soul Spellcasting (Druid)","</entry>","  <entry id=\"215046\" lang=\"en\" sex=\"m\">Obstinate Soul Spellcasting (Druid)</entry>"]
["  <entry id=\"",215047,"\" lang=\"en\" sex=\"m\">","Spirit Incarnate Spellcasting (Druid)","</entry>","  <entry id=\"215047\" lang=\"en\" sex=\"m\">Spirit Incarnate Spellcasting (Druid)</entry>"]
["  <entry id=\"",215048,"\" lang=\"en\" sex=\"m\">","Ambofari Spellcasting (Ele.Champion)","</entry>","  <entry id=\"215048\" lang=\"en\" sex=\"m\">Ambofari Spellcasting (Ele.Champion)</entry>"]
["  <entry id=\"",215049,"\" lang=\"en\" sex=\"m\">","Battle Dancer Spellcasting (Ele.Champion)","</entry>","  <entry id=\"215049\" lang=\"en\" sex=\"m\">Battle Dancer Spellcasting (Ele.Champion)</entry>"]
["  <entry id=\"",215050,"\" lang=\"en\" sex=\"m\">","Black Cassock Spellcasting (Ele.Champion)","</entry>","  <entry id=\"215050\" lang=\"en\" sex=\"m\">Black Cassock Spellcasting (Ele.Champion)</entry>"]
["  <entry id=\"",215051,"\" lang=\"en\" sex=\"m\">","Combat Medic Spellcasting (Ele.Champion)","</entry>","  <entry id=\"215051\" lang=\"en\" sex=\"m\">Combat Medic Spellcasting (Ele.Champion)</entry>"]
["  <entry id=\"",215052,"\" lang=\"en\" sex=\"m\">","Drake Guardian Spellcasting (Ele.Champion)","</entry>","  <entry id=\"215052\" lang=\"en\" sex=\"m\">Drake Guardian Spellcasting (Ele.Champion)</entry>"]
["  <entry id=\"",215053,"\" lang=\"en\" sex=\"m\">","Element Singer Spellcasting (Ele.Champion)","</entry>","  <entry id=\"215053\" lang=\"en\" sex=\"m\">Element Singer Spellcasting (Ele.Champion)</entry>"]
["  <entry id=\"",215054,"\" lang=\"en\" sex=\"m\">","Elementalist Spellcasting (Ele.Champion)","</entry>","  <entry id=\"215054\" lang=\"en\" sex=\"m\">Elementalist Spellcasting (Ele.Champion)</entry>"]
["  <entry id=\"",215055,"\" lang=\"en\" sex=\"m\">","Mystic Theurge Spellcasting (Ele.Champion)","</entry>","  <entry id=\"215055\" lang=\"en\" sex=\"m\">Mystic Theurge Spellcasting (Ele.Champion)</entry>"]
["  <entry id=\"",215056,"\" lang=\"en\" sex=\"m\">","Obstinate Soul Spellcasting (Ele.Champion)","</entry>","  <entry id=\"215056\" lang=\"en\" sex=\"m\">Obstinate Soul Spellcasting (Ele.Champion)</entry>"]
["  <entry id=\"",215057,"\" lang=\"en\" sex=\"m\">","Oozemaster Spellcasting (Ele.Champion)","</entry>","  <entry id=\"215057\" lang=\"en\" sex=\"m\">Oozemaster Spellcasting (Ele.Champion)</entry>"]
["  <entry id=\"",215058,"\" lang=\"en\" sex=\"m\">","Psychic Theurge Spellcasting (Ele.Champion)","</entry>","  <entry id=\"215058\" lang=\"en\" sex=\"m\">Psychic Theurge Spellcasting (Ele.Champion)</entry>"]
["  <entry id=\"",215059,"\" lang=\"en\" sex=\"m\">","True Necromancer Spellcasting (Ele.Champion)","</entry>","  <entry id=\"215059\" lang=\"en\" sex=\"m\">True Necromancer Spellcasting (Ele.Champion)</entry>"]
["  <entry id=\"",215060,"\" lang=\"en\" sex=\"m\">","Warpriest Spellcasting (Ele.Champion)","</entry>","  <entry id=\"215060\" lang=\"en\" sex=\"m\">Warpriest Spellcasting (Ele.Champion)</entry>"]
["  <entry id=\"",215061,"\" lang=\"en\" sex=\"m\">","Arcanist Spellcasting (Preserver)","</entry>","  <entry id=\"215061\" lang=\"en\" sex=\"m\">Arcanist Spellcasting (Preserver)</entry>"]
["  <entry id=\"",215062,"\" lang=\"en\" sex=\"m\">","Arena Mage Spellcasting (Preserver)","</entry>","  <entry id=\"215062\" lang=\"en\" sex=\"m\">Arena Mage Spellcasting (Preserver)</entry>"]
["  <entry id=\"",215063,"\" lang=\"en\" sex=\"m\">","Cerulean Spellcasting (Preserver)","</entry>","  <entry id=\"215063\" lang=\"en\" sex=\"m\">Cerulean Spellcasting (Preserver)</entry>"]
["  <entry id=\"",215064,"\" lang=\"en\" sex=\"m\">","Chasseur Spellcasting (Preserver)","</entry>","  <entry id=\"215064\" lang=\"en\" sex=\"m\">Chasseur Spellcasting (Preserver)</entry>"]
["  <entry id=\"",215065,"\" lang=\"en\" sex=\"m\">","Dead Heart Interrorgator Spellcasting (Preserver)","</entry>","  <entry id=\"215065\" lang=\"en\" sex=\"m\">Dead Heart Interrorgator Spellcasting (Preserver)</entry>"]
["  <entry id=\"",215066,"\" lang=\"en\" sex=\"m\">","Earth Defender Spellcasting (Preserver)","</entry>","  <entry id=\"215066\" lang=\"en\" sex=\"m\">Earth Defender Spellcasting (Preserver)</entry>"]
["  <entry id=\"",215067,"\" lang=\"en\" sex=\"m\">","Halfling Protector Spellcasting (Preserver)","</entry>","  <entry id=\"215067\" lang=\"en\" sex=\"m\">Halfling Protector Spellcasting (Preserver)</entry>"]
["  <entry id=\"",215068,"\" lang=\"en\" sex=\"m\">","Necromant Spellcasting (Preserver)","</entry>","  <entry id=\"215068\" lang=\"en\" sex=\"m\">Necromant Spellcasting (Preserver)</entry>"]
["  <entry id=\"",215069,"\" lang=\"en\" sex=\"m\">","Restorationist Spellcasting (Preserver)","</entry>",{"$f":"CONCATENATE(A70,B70,C70,D70,E70)","v":"  <entry id=\"215069\" lang=\"en\" sex=\"m\">Restorationist Spellcasting (Preserver)</entry>"}]
["  <entry id=\"",215070,"\" lang=\"en\" sex=\"m\">","Shadow Wizard Spellcasting (Preserver)","</entry>","  <entry id=\"215070\" lang=\"en\" sex=\"m\">Shadow Wizard Spellcasting (Preserver)</entry>"]
["  <entry id=\"",215071,"\" lang=\"en\" sex=\"m\">","Veiled One Spellcasting (Preserver)","</entry>","  <entry id=\"215071\" lang=\"en\" sex=\"m\">Veiled One Spellcasting (Preserver)</entry>"]
["  <entry id=\"",215072,"\" lang=\"en\" sex=\"m\">","Ambofari Spellcasting (Ranger)","</entry>","  <entry id=\"215072\" lang=\"en\" sex=\"m\">Ambofari Spellcasting (Ranger)</entry>"]
["  <entry id=\"",215073,"\" lang=\"en\" sex=\"m\">","Black Cassock Spellcasting (Ranger)","</entry>","  <entry id=\"215073\" lang=\"en\" sex=\"m\">Black Cassock Spellcasting (Ranger)</entry>"]
["  <entry id=\"",215074,"\" lang=\"en\" sex=\"m\">","Drake Guardian Spellcasting (Ranger)","</entry>","  <entry id=\"215074\" lang=\"en\" sex=\"m\">Drake Guardian Spellcasting (Ranger)</entry>"]
["  <entry id=\"",215075,"\" lang=\"en\" sex=\"m\">","Obstinate Soul Spellcasting (Ranger)","</entry>",{"$f":"CONCATENATE(A76,B76,C76,D76,E76)","v":"  <entry id=\"215075\" lang=\"en\" sex=\"m\">Obstinate Soul Spellcasting (Ranger)</entry>"}]
["  <entry id=\"",215076,"\" lang=\"en\" sex=\"m\">","Spirit Incarnate Spellcasting (Ranger)","</entry>",{"$f":"CONCATENATE(A77,B77,C77,D77,E77)","v":"  <entry id=\"215076\" lang=\"en\" sex=\"m\">Spirit Incarnate Spellcasting (Ranger)</entry>"}]
["  <entry id=\"",215077,"\" lang=\"en\" sex=\"m\">","Abjurant Champion Spellcrafting (Shadow Templar)","</entry>","  <entry id=\"215077\" lang=\"en\" sex=\"m\">Abjurant Champion Spellcrafting (Shadow Templar)</entry>"]
["  <entry id=\"",215078,"\" lang=\"en\" sex=\"m\">","Arcanist Spellcrafting (Shadow Templar)","</entry>",{"$f":"CONCATENATE(A79,B79,C79,D79,E79)","v":"  <entry id=\"215078\" lang=\"en\" sex=\"m\">Arcanist Spellcrafting (Shadow Templar)</entry>"}]
["  <entry id=\"",215079,"\" lang=\"en\" sex=\"m\">","Arcane Trickster Spellcrafting (Shadow Templar)","</entry>",{"$f":"CONCATENATE(A80,B80,C80,D80,E80)","v":"  <entry id=\"215079\" lang=\"en\" sex=\"m\">Arcane Trickster Spellcrafting (Shadow Templar)</entry>"}]
["  <entry id=\"",215080,"\" lang=\"en\" sex=\"m\">","Archmage Spellcrafting (Shadow Templar)","</entry>","  <entry id=\"215080\" lang=\"en\" sex=\"m\">Archmage Spellcrafting (Shadow Templar)</entry>"]
["  <entry id=\"",215081,"\" lang=\"en\" sex=\"m\">","Arena Mage Spellcrafting (Shadow Templar)","</entry>","  <entry id=\"215081\" lang=\"en\" sex=\"m\">Arena Mage Spellcrafting (Shadow Templar)</entry>"]
["  <entry id=\"",215082,"\" lang=\"en\" sex=\"m\">","Cerebremancer Spellcrafting (Shadow Templar)","</entry>","  <entry id=\"215082\" lang=\"en\" sex=\"m\">Cerebremancer Spellcrafting (Shadow Templar)</entry>"]
["  <entry id=\"",215083,"\" lang=\"en\" sex=\"m\">","Chasseur Spellcrafting (Shadow Templar)","</entry>",{"$f":"CONCATENATE(A84,B84,C84,D84,E84)","v":"  <entry id=\"215083\" lang=\"en\" sex=\"m\">Chasseur Spellcrafting (Shadow Templar)</entry>"}]
["  <entry id=\"",215084,"\" lang=\"en\" sex=\"m\">","Dead Heart Interrorgator Spellcrafting (Shadow Templar)","</entry>","  <entry id=\"215084\" lang=\"en\" sex=\"m\">Dead Heart Interrorgator Spellcrafting (Shadow Templar)</entry>"]
["  <entry id=\"",215085,"\" lang=\"en\" sex=\"m\">","Elemental Savant Spellcrafting (Shadow Templar)","</entry>","  <entry id=\"215085\" lang=\"en\" sex=\"m\">Elemental Savant Spellcrafting (Shadow Templar)</entry>"]
["  <entry id=\"",215086,"\" lang=\"en\" sex=\"m\">","Master Alchemist Spellcrafting (Shadow Templar)","</entry>","  <entry id=\"215086\" lang=\"en\" sex=\"m\">Master Alchemist Spellcrafting (Shadow Templar)</entry>"]
["  <entry id=\"",215087,"\" lang=\"en\" sex=\"m\">","Necromant Spellcrafting (Shadow Templar)","</entry>","  <entry id=\"215087\" lang=\"en\" sex=\"m\">Necromant Spellcrafting (Shadow Templar)</entry>"]
["  <entry id=\"",215088,"\" lang=\"en\" sex=\"m\">","Mystic Theurge Spellcrafting (Shadow Templar)","</entry>",{"$f":"CONCATENATE(A89,B89,C89,D89,E89)","v":"  <entry id=\"215088\" lang=\"en\" sex=\"m\">Mystic Theurge Spellcrafting (Shadow Templar)</entry>"}]
["  <entry id=\"",215089,"\" lang=\"en\" sex=\"m\">","Pale Master Spellcrafting (Shadow Templar)","</entry>","  <entry id=\"215089\" lang=\"en\" sex=\"m\">Pale Master Spellcrafting (Shadow Templar)</entry>"]
["  <entry id=\"",215090,"\" lang=\"en\" sex=\"m\">","Shadow Wizard Spellcrafting (Shadow Templar)","</entry>","  <entry id=\"215090\" lang=\"en\" sex=\"m\">Shadow Wizard Spellcrafting (Shadow Templar)</entry>"]
["  <entry id=\"",215091,"\" lang=\"en\" sex=\"m\">","Spellsword Spellcasting (Shadow Templar)","</entry>",{"$f":"CONCATENATE(A92,B92,C92,D92,E92)","v":"  <entry id=\"215091\" lang=\"en\" sex=\"m\">Spellsword Spellcasting (Shadow Templar)</entry>"}]
["  <entry id=\"",215092,"\" lang=\"en\" sex=\"m\">","True Necromancer Spellcrafting (Shadow Templar)","</entry>","  <entry id=\"215092\" lang=\"en\" sex=\"m\">True Necromancer Spellcrafting (Shadow Templar)</entry>"]
["  <entry id=\"",215093,"\" lang=\"en\" sex=\"m\">","Virtuoso Spellcasting (Shadow Templar)","</entry>",{"$f":"CONCATENATE(A94,B94,C94,D94,E94)","v":"  <entry id=\"215093\" lang=\"en\" sex=\"m\">Virtuoso Spellcasting (Shadow Templar)</entry>"}]
["  <entry id=\"",215094,"\" lang=\"en\" sex=\"m\">","Ambofari Spellcasting (Templar)","</entry>","  <entry id=\"215094\" lang=\"en\" sex=\"m\">Ambofari Spellcasting (Templar)</entry>"]
["  <entry id=\"",215095,"\" lang=\"en\" sex=\"m\">","Combat Medic Spellcasting (Templar)","</entry>","  <entry id=\"215095\" lang=\"en\" sex=\"m\">Combat Medic Spellcasting (Templar)</entry>"]
["  <entry id=\"",215096,"\" lang=\"en\" sex=\"m\">","Hierophant Spellcasting (Templar)","</entry>","  <entry id=\"215096\" lang=\"en\" sex=\"m\">Hierophant Spellcasting (Templar)</entry>"]
["  <entry id=\"",215097,"\" lang=\"en\" sex=\"m\">","Moon Priest Spellcasting (Templar)","</entry>","  <entry id=\"215097\" lang=\"en\" sex=\"m\">Moon Priest Spellcasting (Templar)</entry>"]
["  <entry id=\"",215098,"\" lang=\"en\" sex=\"m\">","Mystic Theurge Spellcasting (Templar)","</entry>","  <entry id=\"215098\" lang=\"en\" sex=\"m\">Mystic Theurge Spellcasting (Templar)</entry>"]
["  <entry id=\"",215099,"\" lang=\"en\" sex=\"m\">","Oba's Servant Spellcasting (Templar)","</entry>","  <entry id=\"215099\" lang=\"en\" sex=\"m\">Oba's Servant Spellcasting (Templar)</entry>"]
["  <entry id=\"",215100,"\" lang=\"en\" sex=\"m\">","Oozemaster Spellcasting (Templar)","</entry>","  <entry id=\"215100\" lang=\"en\" sex=\"m\">Oozemaster Spellcasting (Templar)</entry>"]
["  <entry id=\"",215101,"\" lang=\"en\" sex=\"m\">","Psychic Theurge Spellcasting (Templar)","</entry>","  <entry id=\"215101\" lang=\"en\" sex=\"m\">Psychic Theurge Spellcasting (Templar)</entry>"]
["  <entry id=\"",215102,"\" lang=\"en\" sex=\"m\">","Servant of Badna Spellcasting (Templar)","</entry>","  <entry id=\"215102\" lang=\"en\" sex=\"m\">Servant of Badna Spellcasting (Templar)</entry>"]
["  <entry id=\"",215103,"\" lang=\"en\" sex=\"m\">","Templar of the Scale Spellcasting (Templar)","</entry>","  <entry id=\"215103\" lang=\"en\" sex=\"m\">Templar of the Scale Spellcasting (Templar)</entry>"]
["  <entry id=\"",215104,"\" lang=\"en\" sex=\"m\">","True Necromancer Spellcasting (Templar)","</entry>","  <entry id=\"215104\" lang=\"en\" sex=\"m\">True Necromancer Spellcasting (Templar)</entry>"]
["  <entry id=\"",215105,"\" lang=\"en\" sex=\"m\">","Warpriest Spellcasting (Templar)","</entry>","  <entry id=\"215105\" lang=\"en\" sex=\"m\">Warpriest Spellcasting (Templar)</entry>"]
["  <entry id=\"",215106,"\" lang=\"en\" sex=\"m\">","Wife of Nibenay Spellcasting (Templar)","</entry>","  <entry id=\"215106\" lang=\"en\" sex=\"m\">Wife of Nibenay Spellcasting (Templar)</entry>"]
["  <entry id=\"",215107,"\" lang=\"en\" sex=\"m\">","Yellow Robe Spellcasting (Templar)","</entry>","  <entry id=\"215107\" lang=\"en\" sex=\"m\">Yellow Robe Spellcasting (Templar)</entry>"]
["  <entry id=\"",215108,"\" lang=\"en\" sex=\"m\">","Ambofari Spellcaster (Templar Knight)","</entry>","  <entry id=\"215108\" lang=\"en\" sex=\"m\">Ambofari Spellcaster (Templar Knight)</entry>"]
["  <entry id=\"",215109,"\" lang=\"en\" sex=\"m\">","Combat Medic (Templar Knight)","</entry>","  <entry id=\"215109\" lang=\"en\" sex=\"m\">Combat Medic (Templar Knight)</entry>"]
["  <entry id=\"",215110,"\" lang=\"en\" sex=\"m\">","Mystic Theurge (Templar Knight)","</entry>","  <entry id=\"215110\" lang=\"en\" sex=\"m\">Mystic Theurge (Templar Knight)</entry>"]
["  <entry id=\"",215111,"\" lang=\"en\" sex=\"m\">","Oozemaster (Templar Knight)","</entry>","  <entry id=\"215111\" lang=\"en\" sex=\"m\">Oozemaster (Templar Knight)</entry>"]
["  <entry id=\"",215112,"\" lang=\"en\" sex=\"m\">","Psychic Theurge (Templar Knight)","</entry>","  <entry id=\"215112\" lang=\"en\" sex=\"m\">Psychic Theurge (Templar Knight)</entry>"]
["  <entry id=\"",215113,"\" lang=\"en\" sex=\"m\">","Warpriest (Templar Knight)","</entry>","  <entry id=\"215113\" lang=\"en\" sex=\"m\">Warpriest (Templar Knight)</entry>"]
["  <entry id=\"",215114,"\" lang=\"en\" sex=\"m\">","Ambofari Manifesting (Psion)","</entry>","  <entry id=\"215114\" lang=\"en\" sex=\"m\">Ambofari Manifesting (Psion)</entry>"]
["  <entry id=\"",215115,"\" lang=\"en\" sex=\"m\">","Auditor Manifesting (Psion)","</entry>","  <entry id=\"215115\" lang=\"en\" sex=\"m\">Auditor Manifesting (Psion)</entry>"]
["  <entry id=\"",215116,"\" lang=\"en\" sex=\"m\">","Cornac Manifesting (Psion)","</entry>","  <entry id=\"215116\" lang=\"en\" sex=\"m\">Cornac Manifesting (Psion)</entry>"]
["  <entry id=\"",215117,"\" lang=\"en\" sex=\"m\">","Dead Heart Interrorgator Manifesting (Psion)","</entry>","  <entry id=\"215117\" lang=\"en\" sex=\"m\">Dead Heart Interrorgator Manifesting (Psion)</entry>"]
["  <entry id=\"",215118,"\" lang=\"en\" sex=\"m\">","Drake Guardian Manifesting (Psion)","</entry>","  <entry id=\"215118\" lang=\"en\" sex=\"m\">Drake Guardian Manifesting (Psion)</entry>"]
["  <entry id=\"",215119,"\" lang=\"en\" sex=\"m\">","Kreen Slayer Manifesting (Psion)","</entry>","  <entry id=\"215119\" lang=\"en\" sex=\"m\">Kreen Slayer Manifesting (Psion)</entry>"]
["  <entry id=\"",215120,"\" lang=\"en\" sex=\"m\">","Master Shipfloater Manifesting (Psion)","</entry>","  <entry id=\"215120\" lang=\"en\" sex=\"m\">Master Shipfloater Manifesting (Psion)</entry>"]
["  <entry id=\"",215121,"\" lang=\"en\" sex=\"m\">","Obstinate Soul Manifesting (Psion)","</entry>","  <entry id=\"215121\" lang=\"en\" sex=\"m\">Obstinate Soul Manifesting (Psion)</entry>"]
["  <entry id=\"",215122,"\" lang=\"en\" sex=\"m\">","Psiologist Manifesting (Psion)","</entry>","  <entry id=\"215122\" lang=\"en\" sex=\"m\">Psiologist Manifesting (Psion)</entry>"]
["  <entry id=\"",215123,"\" lang=\"en\" sex=\"m\">","Scion of the Worm Manifesting (Psion)","</entry>","  <entry id=\"215123\" lang=\"en\" sex=\"m\">Scion of the Worm Manifesting (Psion)</entry>"]
["  <entry id=\"",215124,"\" lang=\"en\" sex=\"m\">","Sensei Manifesting (Psion)","</entry>","  <entry id=\"215124\" lang=\"en\" sex=\"m\">Sensei Manifesting (Psion)</entry>"]
["  <entry id=\"",215125,"\" lang=\"en\" sex=\"m\">","Tattooist Manifesting (Psion)","</entry>","  <entry id=\"215125\" lang=\"en\" sex=\"m\">Tattooist Manifesting (Psion)</entry>"]
["  <entry id=\"",215126,"\" lang=\"en\" sex=\"m\">","Tekchakak Manifesting (Psion)","</entry>","  <entry id=\"215126\" lang=\"en\" sex=\"m\">Tekchakak Manifesting (Psion)</entry>"]
["  <entry id=\"",215127,"\" lang=\"en\" sex=\"m\">","Tribal Psionicist Manifesting (Psion)","</entry>","  <entry id=\"215127\" lang=\"en\" sex=\"m\">Tribal Psionicist Manifesting (Psion)</entry>"]
["  <entry id=\"",215128,"\" lang=\"en\" sex=\"m\">","Ambofari Manifesting (Psychic Warrior)","</entry>",{"$f":"CONCATENATE(A129,B129,C129,D129,E129)","v":"  <entry id=\"215128\" lang=\"en\" sex=\"m\">Ambofari Manifesting (Psychic Warrior)</entry>"}]
["  <entry id=\"",215129,"\" lang=\"en\" sex=\"m\">","Auditor Manifesting (Psychic Warrior)","</entry>","  <entry id=\"215129\" lang=\"en\" sex=\"m\">Auditor Manifesting (Psychic Warrior)</entry>"]
["  <entry id=\"",215130,"\" lang=\"en\" sex=\"m\">","Cornac Manifesting (Psychic Warrior)","</entry>","  <entry id=\"215130\" lang=\"en\" sex=\"m\">Cornac Manifesting (Psychic Warrior)</entry>"]
["  <entry id=\"",215131,"\" lang=\"en\" sex=\"m\">","Dead Heart Interrorgator Manifesting (Psychic Warrior)","</entry>","  <entry id=\"215131\" lang=\"en\" sex=\"m\">Dead Heart Interrorgator Manifesting (Psychic Warrior)</entry>"]
["  <entry id=\"",215132,"\" lang=\"en\" sex=\"m\">","Drake Guardian Manifesting (Psychic Warrior)","</entry>","  <entry id=\"215132\" lang=\"en\" sex=\"m\">Drake Guardian Manifesting (Psychic Warrior)</entry>"]
["  <entry id=\"",215133,"\" lang=\"en\" sex=\"m\">","Kreen Slayer Manifesting (Psychic Warrior)","</entry>","  <entry id=\"215133\" lang=\"en\" sex=\"m\">Kreen Slayer Manifesting (Psychic Warrior)</entry>"]
["  <entry id=\"",215134,"\" lang=\"en\" sex=\"m\">","Master Shipfloater Manifesting (Psychic Warrior)","</entry>","  <entry id=\"215134\" lang=\"en\" sex=\"m\">Master Shipfloater Manifesting (Psychic Warrior)</entry>"]
["  <entry id=\"",215135,"\" lang=\"en\" sex=\"m\">","Obstinate Soul Manifesting (Psychic Warrior)","</entry>","  <entry id=\"215135\" lang=\"en\" sex=\"m\">Obstinate Soul Manifesting (Psychic Warrior)</entry>"]
["  <entry id=\"",215136,"\" lang=\"en\" sex=\"m\">","Psiologist Manifesting (Psychic Warrior)","</entry>","  <entry id=\"215136\" lang=\"en\" sex=\"m\">Psiologist Manifesting (Psychic Warrior)</entry>"]
["  <entry id=\"",215137,"\" lang=\"en\" sex=\"m\">","Scion of the Worm Manifesting (Psychic Warrior)","</entry>","  <entry id=\"215137\" lang=\"en\" sex=\"m\">Scion of the Worm Manifesting (Psychic Warrior)</entry>"]
["  <entry id=\"",215138,"\" lang=\"en\" sex=\"m\">","Sensei Manifesting (Psychic Warrior)","</entry>","  <entry id=\"215138\" lang=\"en\" sex=\"m\">Sensei Manifesting (Psychic Warrior)</entry>"]
["  <entry id=\"",215139,"\" lang=\"en\" sex=\"m\">","Tattooist Manifesting (Psychic Warrior)","</entry>","  <entry id=\"215139\" lang=\"en\" sex=\"m\">Tattooist Manifesting (Psychic Warrior)</entry>"]
["  <entry id=\"",215140,"\" lang=\"en\" sex=\"m\">","Tekchakak Manifesting (Psychic Warrior)","</entry>","  <entry id=\"215140\" lang=\"en\" sex=\"m\">Tekchakak Manifesting (Psychic Warrior)</entry>"]
["  <entry id=\"",215141,"\" lang=\"en\" sex=\"m\">","Tribal Psionicist Manifesting (Psychic Warrior)","</entry>","  <entry id=\"215141\" lang=\"en\" sex=\"m\">Tribal Psionicist Manifesting (Psychic Warrior)</entry>"]
["  <entry id=\"",215142,"\" lang=\"en\" sex=\"m\">","Ambofari Manifesting (Psychic Rogue)","</entry>","  <entry id=\"215142\" lang=\"en\" sex=\"m\">Ambofari Manifesting (Psychic Rogue)</entry>"]
["  <entry id=\"",215143,"\" lang=\"en\" sex=\"m\">","Auditor Manifesting (Psychic Rogue)","</entry>",{"$f":"CONCATENATE(A144,B144,C144,D144,E144)","v":"  <entry id=\"215143\" lang=\"en\" sex=\"m\">Auditor Manifesting (Psychic Rogue)</entry>"}]
["  <entry id=\"",215144,"\" lang=\"en\" sex=\"m\">","Cornac Manifesting (Psychic Rogue)","</entry>","  <entry id=\"215144\" lang=\"en\" sex=\"m\">Cornac Manifesting (Psychic Rogue)</entry>"]
["  <entry id=\"",215145,"\" lang=\"en\" sex=\"m\">","Dead Heart Interrorgator Manifesting (Psychic Rogue)","</entry>","  <entry id=\"215145\" lang=\"en\" sex=\"m\">Dead Heart Interrorgator Manifesting (Psychic Rogue)</entry>"]
["  <entry id=\"",215146,"\" lang=\"en\" sex=\"m\">","Drake Guardian Manifesting (Psychic Rogue)","</entry>","  <entry id=\"215146\" lang=\"en\" sex=\"m\">Drake Guardian Manifesting (Psychic Rogue)</entry>"]
["  <entry id=\"",215147,"\" lang=\"en\" sex=\"m\">","Kreen Slayer Manifesting (Psychic Rogue)","</entry>","  <entry id=\"215147\" lang=\"en\" sex=\"m\">Kreen Slayer Manifesting (Psychic Rogue)</entry>"]
["  <entry id=\"",215148,"\" lang=\"en\" sex=\"m\">","Master Shipfloater Manifesting (Psychic Rogue)","</entry>","  <entry id=\"215148\" lang=\"en\" sex=\"m\">Master Shipfloater Manifesting (Psychic Rogue)</entry>"]
["  <entry id=\"",215149,"\" lang=\"en\" sex=\"m\">","Obstinate Soul Manifesting (Psychic Rogue)","</entry>","  <entry id=\"215149\" lang=\"en\" sex=\"m\">Obstinate Soul Manifesting (Psychic Rogue)</entry>"]
["  <entry id=\"",215150,"\" lang=\"en\" sex=\"m\">","Psiologist Manifesting (Psychic Rogue)","</entry>","  <entry id=\"215150\" lang=\"en\" sex=\"m\">Psiologist Manifesting (Psychic Rogue)</entry>"]
["  <entry id=\"",215151,"\" lang=\"en\" sex=\"m\">","Scion of the Worm Manifesting (Psychic Rogue)","</entry>","  <entry id=\"215151\" lang=\"en\" sex=\"m\">Scion of the Worm Manifesting (Psychic Rogue)</entry>"]
["  <entry id=\"",215152,"\" lang=\"en\" sex=\"m\">","Sensei Manifesting (Psychic Rogue)","</entry>","  <entry id=\"215152\" lang=\"en\" sex=\"m\">Sensei Manifesting (Psychic Rogue)</entry>"]
["  <entry id=\"",215153,"\" lang=\"en\" sex=\"m\">","Tattooist Manifesting (Psychic Rogue)","</entry>","  <entry id=\"215153\" lang=\"en\" sex=\"m\">Tattooist Manifesting (Psychic Rogue)</entry>"]
["  <entry id=\"",215154,"\" lang=\"en\" sex=\"m\">","Tekchakak Manifesting (Psychic Rogue)","</entry>","  <entry id=\"215154\" lang=\"en\" sex=\"m\">Tekchakak Manifesting (Psychic Rogue)</entry>"]
["  <entry id=\"",215155,"\" lang=\"en\" sex=\"m\">","Tribal Psionicist Manifesting (Psychic Rogue)","</entry>","  <entry id=\"215155\" lang=\"en\" sex=\"m\">Tribal Psionicist Manifesting (Psychic Rogue)</entry>"]
["  <entry id=\"",215156,"\" lang=\"en\" sex=\"m\">","Ambofari Manifesting (War Mind)","</entry>","  <entry id=\"215156\" lang=\"en\" sex=\"m\">Ambofari Manifesting (War Mind)</entry>"]
["  <entry id=\"",215157,"\" lang=\"en\" sex=\"m\">","Auditor Manifesting (War Mind)","</entry>","  <entry id=\"215157\" lang=\"en\" sex=\"m\">Auditor Manifesting (War Mind)</entry>"]
["  <entry id=\"",215158,"\" lang=\"en\" sex=\"m\">","Cornac Manifesting (War Mind)","</entry>","  <entry id=\"215158\" lang=\"en\" sex=\"m\">Cornac Manifesting (War Mind)</entry>"]
["  <entry id=\"",215159,"\" lang=\"en\" sex=\"m\">","Dead Heart Interrorgator Manifesting (War Mind)","</entry>","  <entry id=\"215159\" lang=\"en\" sex=\"m\">Dead Heart Interrorgator Manifesting (War Mind)</entry>"]
["  <entry id=\"",215160,"\" lang=\"en\" sex=\"m\">","Drake Guardian Manifesting (War Mind)","</entry>","  <entry id=\"215160\" lang=\"en\" sex=\"m\">Drake Guardian Manifesting (War Mind)</entry>"]
["  <entry id=\"",215161,"\" lang=\"en\" sex=\"m\">","Kreen Slayer Manifesting (War Mind)","</entry>","  <entry id=\"215161\" lang=\"en\" sex=\"m\">Kreen Slayer Manifesting (War Mind)</entry>"]
["  <entry id=\"",215162,"\" lang=\"en\" sex=\"m\">","Master Shipfloater Manifesting (War Mind)","</entry>","  <entry id=\"215162\" lang=\"en\" sex=\"m\">Master Shipfloater Manifesting (War Mind)</entry>"]
["  <entry id=\"",215163,"\" lang=\"en\" sex=\"m\">","Obstinate Soul Manifesting (War Mind)","</entry>","  <entry id=\"215163\" lang=\"en\" sex=\"m\">Obstinate Soul Manifesting (War Mind)</entry>"]
["  <entry id=\"",215164,"\" lang=\"en\" sex=\"m\">","Scion of the Worm Manifesting (War Mind)","</entry>","  <entry id=\"215164\" lang=\"en\" sex=\"m\">Scion of the Worm Manifesting (War Mind)</entry>"]
["  <entry id=\"",215165,"\" lang=\"en\" sex=\"m\">","Sensei Manifesting (War Mind)","</entry>","  <entry id=\"215165\" lang=\"en\" sex=\"m\">Sensei Manifesting (War Mind)</entry>"]
["  <entry id=\"",215166,"\" lang=\"en\" sex=\"m\">","Tattooist Manifesting (War Mind)","</entry>","  <entry id=\"215166\" lang=\"en\" sex=\"m\">Tattooist Manifesting (War Mind)</entry>"]
["  <entry id=\"",215167,"\" lang=\"en\" sex=\"m\">","Tekchakak Manifesting (War Mind)","</entry>","  <entry id=\"215167\" lang=\"en\" sex=\"m\">Tekchakak Manifesting (War Mind)</entry>"]
["  <entry id=\"",215168,"\" lang=\"en\" sex=\"m\">","Tribal Psionicist Manifesting (War Mind)","</entry>","  <entry id=\"215168\" lang=\"en\" sex=\"m\">Tribal Psionicist Manifesting (War Mind)</entry>"]
["  <entry id=\"",215169,"\" lang=\"en\" sex=\"m\">","Ambofari Manifesting (Wilder)","</entry>",{"$f":"CONCATENATE(A170,B170,C170,D170,E170)","v":"  <entry id=\"215169\" lang=\"en\" sex=\"m\">Ambofari Manifesting (Wilder)</entry>"}]
["  <entry id=\"",215170,"\" lang=\"en\" sex=\"m\">","Auditor Manifesting (Wilder)","</entry>","  <entry id=\"215170\" lang=\"en\" sex=\"m\">Auditor Manifesting (Wilder)</entry>"]
["  <entry id=\"",215171,"\" lang=\"en\" sex=\"m\">","Cornac Manifesting (Wilder)","</entry>","  <entry id=\"215171\" lang=\"en\" sex=\"m\">Cornac Manifesting (Wilder)</entry>"]
["  <entry id=\"",215172,"\" lang=\"en\" sex=\"m\">","Dead Heart Interrorgator Manifesting (Wilder)","</entry>","  <entry id=\"215172\" lang=\"en\" sex=\"m\">Dead Heart Interrorgator Manifesting (Wilder)</entry>"]
["  <entry id=\"",215173,"\" lang=\"en\" sex=\"m\">","Drake Guardian Manifesting (Wilder)","</entry>","  <entry id=\"215173\" lang=\"en\" sex=\"m\">Drake Guardian Manifesting (Wilder)</entry>"]
["  <entry id=\"",215174,"\" lang=\"en\" sex=\"m\">","Kreen Slayer Manifesting (Wilder)","</entry>","  <entry id=\"215174\" lang=\"en\" sex=\"m\">Kreen Slayer Manifesting (Wilder)</entry>"]
["  <entry id=\"",215175,"\" lang=\"en\" sex=\"m\">","Master Shipfloater Manifesting (Wilder)","</entry>","  <entry id=\"215175\" lang=\"en\" sex=\"m\">Master Shipfloater Manifesting (Wilder)</entry>"]
["  <entry id=\"",215176,"\" lang=\"en\" sex=\"m\">","Obstinate Soul Manifesting (Wilder)","</entry>","  <entry id=\"215176\" lang=\"en\" sex=\"m\">Obstinate Soul Manifesting (Wilder)</entry>"]
["  <entry id=\"",215177,"\" lang=\"en\" sex=\"m\">","Psiologist Manifesting (Wilder)","</entry>","  <entry id=\"215177\" lang=\"en\" sex=\"m\">Psiologist Manifesting (Wilder)</entry>"]
["  <entry id=\"",215178,"\" lang=\"en\" sex=\"m\">","Scion of the Worm Manifesting (Wilder)","</entry>","  <entry id=\"215178\" lang=\"en\" sex=\"m\">Scion of the Worm Manifesting (Wilder)</entry>"]
["  <entry id=\"",215179,"\" lang=\"en\" sex=\"m\">","Sensei Manifesting (Wilder)","</entry>","  <entry id=\"215179\" lang=\"en\" sex=\"m\">Sensei Manifesting (Wilder)</entry>"]
["  <entry id=\"",215180,"\" lang=\"en\" sex=\"m\">","Tattooist Manifesting (Wilder)","</entry>","  <entry id=\"215180\" lang=\"en\" sex=\"m\">Tattooist Manifesting (Wilder)</entry>"]
["  <entry id=\"",215181,"\" lang=\"en\" sex=\"m\">","Tekchakak Manifesting (Wilder)","</entry>","  <entry id=\"215181\" lang=\"en\" sex=\"m\">Tekchakak Manifesting (Wilder)</entry>"]
["  <entry id=\"",215182,"\" lang=\"en\" sex=\"m\">","Tribal Psionicist Manifesting (Wilder)","</entry>","  <entry id=\"215182\" lang=\"en\" sex=\"m\">Tribal Psionicist Manifesting (Wilder)</entry>"]
["  <entry id=\"",215183,"\" lang=\"en\" sex=\"m\">","Abjurant Champion Spellcasting (Bard)","</entry>",{"$f":"CONCATENATE(A184,B184,C184,D184,E184)","v":"  <entry id=\"215183\" lang=\"en\" sex=\"m\">Abjurant Champion Spellcasting (Bard)</entry>"}]
["  <entry id=\"",215184,"\" lang=\"en\" sex=\"m\">","Arcanist Spellcasting (Bard)","</entry>","  <entry id=\"215184\" lang=\"en\" sex=\"m\">Arcanist Spellcasting (Bard)</entry>"]
["  <entry id=\"",215185,"\" lang=\"en\" sex=\"m\">","Archmage Spellcasting (Bard)","</entry>","  <entry id=\"215185\" lang=\"en\" sex=\"m\">Archmage Spellcasting (Bard)</entry>"]
["  <entry id=\"",215186,"\" lang=\"en\" sex=\"m\">","Arcane Trickster Spellcasting (Bard)","</entry>","  <entry id=\"215186\" lang=\"en\" sex=\"m\">Arcane Trickster Spellcasting (Bard)</entry>"]
["  <entry id=\"",215187,"\" lang=\"en\" sex=\"m\">","Arena Mage Spellcasting (Bard)","</entry>","  <entry id=\"215187\" lang=\"en\" sex=\"m\">Arena Mage Spellcasting (Bard)</entry>"]
["  <entry id=\"",215188,"\" lang=\"en\" sex=\"m\">","Cerulean Spellcaster (Bard)","</entry>","  <entry id=\"215188\" lang=\"en\" sex=\"m\">Cerulean Spellcaster (Bard)</entry>"]
["  <entry id=\"",215189,"\" lang=\"en\" sex=\"m\">","Chasseur Spellcasting (Bard)","</entry>","  <entry id=\"215189\" lang=\"en\" sex=\"m\">Chasseur Spellcasting (Bard)</entry>"]
["  <entry id=\"",215190,"\" lang=\"en\" sex=\"m\">","Cerebremancer Spellcasting (Bard)","</entry>","  <entry id=\"215190\" lang=\"en\" sex=\"m\">Cerebremancer Spellcasting (Bard)</entry>"]
["  <entry id=\"",215191,"\" lang=\"en\" sex=\"m\">","Dead Heart Interrorgator Spellcasting (Bard)","</entry>","  <entry id=\"215191\" lang=\"en\" sex=\"m\">Dead Heart Interrorgator Spellcasting (Bard)</entry>"]
["  <entry id=\"",215192,"\" lang=\"en\" sex=\"m\">","Earth Defender Spellcasting (Bard)","</entry>","  <entry id=\"215192\" lang=\"en\" sex=\"m\">Earth Defender Spellcasting (Bard)</entry>"]
["  <entry id=\"",215193,"\" lang=\"en\" sex=\"m\">","Elemental Savant Spellcasting (Bard)","</entry>","  <entry id=\"215193\" lang=\"en\" sex=\"m\">Elemental Savant Spellcasting (Bard)</entry>"]
["  <entry id=\"",215194,"\" lang=\"en\" sex=\"m\">","Halfling Protector Spellcasting (Bard)","</entry>","  <entry id=\"215194\" lang=\"en\" sex=\"m\">Halfling Protector Spellcasting (Bard)</entry>"]
["  <entry id=\"",215195,"\" lang=\"en\" sex=\"m\">","Master Alchemist Spellcasting (Bard)","</entry>","  <entry id=\"215195\" lang=\"en\" sex=\"m\">Master Alchemist Spellcasting (Bard)</entry>"]
["  <entry id=\"",215196,"\" lang=\"en\" sex=\"m\">","Mystic Theurge Spellcasting (Bard)","</entry>",{"$f":"CONCATENATE(A197,B197,C197,D197,E197)","v":"  <entry id=\"215196\" lang=\"en\" sex=\"m\">Mystic Theurge Spellcasting (Bard)</entry>"}]
["  <entry id=\"",215197,"\" lang=\"en\" sex=\"m\">","Necromant Spellcasting (Bard)","</entry>","  <entry id=\"215197\" lang=\"en\" sex=\"m\">Necromant Spellcasting (Bard)</entry>"]
["  <entry id=\"",215198,"\" lang=\"en\" sex=\"m\">","Pale Master Spellcasting (Bard)","</entry>","  <entry id=\"215198\" lang=\"en\" sex=\"m\">Pale Master Spellcasting (Bard)</entry>"]
["  <entry id=\"",215199,"\" lang=\"en\" sex=\"m\">","Restorationist Spellcasting (Bard)","</entry>","  <entry id=\"215199\" lang=\"en\" sex=\"m\">Restorationist Spellcasting (Bard)</entry>"]
["  <entry id=\"",215200,"\" lang=\"en\" sex=\"m\">","Shadow Wizard Spellcasting (Bard)","</entry>","  <entry id=\"215200\" lang=\"en\" sex=\"m\">Shadow Wizard Spellcasting (Bard)</entry>"]
["  <entry id=\"",215201,"\" lang=\"en\" sex=\"m\">","Spellsword Spellcasting (Bard)","</entry>","  <entry id=\"215201\" lang=\"en\" sex=\"m\">Spellsword Spellcasting (Bard)</entry>"]
["  <entry id=\"",215202,"\" lang=\"en\" sex=\"m\">","True Necromancer Spellcasting (Bard)","</entry>","  <entry id=\"215202\" lang=\"en\" sex=\"m\">True Necromancer Spellcasting (Bard)</entry>"]
["  <entry id=\"",215203,"\" lang=\"en\" sex=\"m\">","Veiled One Spellcasting (Bard)","</entry>","  <entry id=\"215203\" lang=\"en\" sex=\"m\">Veiled One Spellcasting (Bard)</entry>"]
["  <entry id=\"",215204,"\" lang=\"en\" sex=\"m\">","Virtuoso Spellcasting (Bard)","</entry>","  <entry id=\"215204\" lang=\"en\" sex=\"m\">Virtuoso Spellcasting (Bard)</entry>"]
["  <entry id=\"",215205,"\" lang=\"en\" sex=\"m\">","Abjurant Champion Spellcasting (Rogue)","</entry>",{"$f":"CONCATENATE(A206,B206,C206,D206,E206)","v":"  <entry id=\"215205\" lang=\"en\" sex=\"m\">Abjurant Champion Spellcasting (Rogue)</entry>"}]
["  <entry id=\"",215206,"\" lang=\"en\" sex=\"m\">","Arcanist Spellcasting (Rogue)","</entry>","  <entry id=\"215206\" lang=\"en\" sex=\"m\">Arcanist Spellcasting (Rogue)</entry>"]
["  <entry id=\"",215207,"\" lang=\"en\" sex=\"m\">","Archmage Spellcasting (Rogue)","</entry>","  <entry id=\"215207\" lang=\"en\" sex=\"m\">Archmage Spellcasting (Rogue)</entry>"]
["  <entry id=\"",215208,"\" lang=\"en\" sex=\"m\">","Arcane Trickster Spellcasting (Rogue)","</entry>","  <entry id=\"215208\" lang=\"en\" sex=\"m\">Arcane Trickster Spellcasting (Rogue)</entry>"]
["  <entry id=\"",215209,"\" lang=\"en\" sex=\"m\">","Arena Mage Spellcasting (Rogue)","</entry>","  <entry id=\"215209\" lang=\"en\" sex=\"m\">Arena Mage Spellcasting (Rogue)</entry>"]
["  <entry id=\"",215210,"\" lang=\"en\" sex=\"m\">","Cerulean Spellcaster (Rogue)","</entry>","  <entry id=\"215210\" lang=\"en\" sex=\"m\">Cerulean Spellcaster (Rogue)</entry>"]
["  <entry id=\"",215211,"\" lang=\"en\" sex=\"m\">","Chasseur Spellcasting (Rogue)","</entry>","  <entry id=\"215211\" lang=\"en\" sex=\"m\">Chasseur Spellcasting (Rogue)</entry>"]
["  <entry id=\"",215212,"\" lang=\"en\" sex=\"m\">","Cerebremancer Spellcasting (Rogue)","</entry>","  <entry id=\"215212\" lang=\"en\" sex=\"m\">Cerebremancer Spellcasting (Rogue)</entry>"]
["  <entry id=\"",215213,"\" lang=\"en\" sex=\"m\">","Dead Heart Interrorgator Spellcasting (Rogue)","</entry>","  <entry id=\"215213\" lang=\"en\" sex=\"m\">Dead Heart Interrorgator Spellcasting (Rogue)</entry>"]
["  <entry id=\"",215214,"\" lang=\"en\" sex=\"m\">","Earth Defender Spellcasting (Rogue)","</entry>","  <entry id=\"215214\" lang=\"en\" sex=\"m\">Earth Defender Spellcasting (Rogue)</entry>"]
["  <entry id=\"",215215,"\" lang=\"en\" sex=\"m\">","Elemental Savant Spellcasting (Rogue)","</entry>","  <entry id=\"215215\" lang=\"en\" sex=\"m\">Elemental Savant Spellcasting (Rogue)</entry>"]
["  <entry id=\"",215216,"\" lang=\"en\" sex=\"m\">","Halfling Protector Spellcasting (Rogue)","</entry>","  <entry id=\"215216\" lang=\"en\" sex=\"m\">Halfling Protector Spellcasting (Rogue)</entry>"]
["  <entry id=\"",215217,"\" lang=\"en\" sex=\"m\">","Master Alchemist Spellcasting (Rogue)","</entry>","  <entry id=\"215217\" lang=\"en\" sex=\"m\">Master Alchemist Spellcasting (Rogue)</entry>"]
["  <entry id=\"",215218,"\" lang=\"en\" sex=\"m\">","Mystic Theurge Spellcasting (Rogue)","</entry>",{"$f":"CONCATENATE(A219,B219,C219,D219,E219)","v":"  <entry id=\"215218\" lang=\"en\" sex=\"m\">Mystic Theurge Spellcasting (Rogue)</entry>"}]
["  <entry id=\"",215219,"\" lang=\"en\" sex=\"m\">","Necromant Spellcasting (Rogue)","</entry>","  <entry id=\"215219\" lang=\"en\" sex=\"m\">Necromant Spellcasting (Rogue)</entry>"]
["  <entry id=\"",215220,"\" lang=\"en\" sex=\"m\">","Pale Master Spellcasting (Rogue)","</entry>","  <entry id=\"215220\" lang=\"en\" sex=\"m\">Pale Master Spellcasting (Rogue)</entry>"]
["  <entry id=\"",215221,"\" lang=\"en\" sex=\"m\">","Restorationist Spellcasting (Rogue)","</entry>","  <entry id=\"215221\" lang=\"en\" sex=\"m\">Restorationist Spellcasting (Rogue)</entry>"]
["  <entry id=\"",215222,"\" lang=\"en\" sex=\"m\">","Shadow Wizard Spellcasting (Rogue)","</entry>","  <entry id=\"215222\" lang=\"en\" sex=\"m\">Shadow Wizard Spellcasting (Rogue)</entry>"]
["  <entry id=\"",215223,"\" lang=\"en\" sex=\"m\">","Spellsword Spellcasting (Rogue)","</entry>","  <entry id=\"215223\" lang=\"en\" sex=\"m\">Spellsword Spellcasting (Rogue)</entry>"]
["  <entry id=\"",215224,"\" lang=\"en\" sex=\"m\">","True Necromancer Spellcasting (Rogue)","</entry>","  <entry id=\"215224\" lang=\"en\" sex=\"m\">True Necromancer Spellcasting (Rogue)</entry>"]
["  <entry id=\"",215225,"\" lang=\"en\" sex=\"m\">","Veiled One Spellcasting (Rogue)","</entry>","  <entry id=\"215225\" lang=\"en\" sex=\"m\">Veiled One Spellcasting (Rogue)</entry>"]
["  <entry id=\"",215226,"\" lang=\"en\" sex=\"m\">","Virtuoso Spellcasting (Rogue)","</entry>","  <entry id=\"215226\" lang=\"en\" sex=\"m\">Virtuoso Spellcasting (Rogue)</entry>"]
["  <entry id=\"",215227,"\" lang=\"en\" sex=\"m\">","Oozemaster Spellcasting (Bard)","</entry>",{"$f":"CONCATENATE(A228,B228,C228,D228,E228)","v":"  <entry id=\"215227\" lang=\"en\" sex=\"m\">Oozemaster Spellcasting (Bard)</entry>"}]
["  <entry id=\"",215228,"\" lang=\"en\" sex=\"m\">","Oozemaster Spellcasting (Rogue)","</entry>","  <entry id=\"215228\" lang=\"en\" sex=\"m\">Oozemaster Spellcasting (Rogue)</entry>"]
["  <entry id=\"",215229,"\" lang=\"en\" sex=\"m\">","Oozemaster Spellcasting (Shadow Templar)","</entry>","  <entry id=\"215229\" lang=\"en\" sex=\"m\">Oozemaster Spellcasting (Shadow Templar)</entry>"]
["  <entry id=\"",215230,"\" lang=\"en\" sex=\"m\">","Oozemaster Spellcasting (Defiler)","</entry>",{"$f":"CONCATENATE(A231,B231,C231,D231,E231)","v":"  <entry id=\"215230\" lang=\"en\" sex=\"m\">Oozemaster Spellcasting (Defiler)</entry>"}]

{"sheet":"Marker Feat Descriptions","index":2,"n_rows":43,"n_cols":3,"rows_kept":43}
["Name","TLK Description","2DA Description"]
["Ambofari",215500,16992716]
["Arcanist",215501,16992717]
["Arch_Defiler",215502,16992718]
["Arena_Mage",215503,16992719]
["Battle_Dancer",215504,16992720]
["Black_Cassock",215505,16992721]
["Cerulean",215506,16992722]
["Chasseur",215507,16992723]
["Dead_Heart",215508,16992724]
["Drake_Guardian",215509,16992725]
["Earth_Defender",215510,16992726]
["Element_Singer",215511,16992727]
["Elemental_Master",215512,16992728]
["Elementalist",215513,16992729]
["Grove_Master",215514,16992730]
["Halfling_Protector",215515,16992731]
["Leech",215516,16992732]
["Monarchs_Chosen",215517,16992733]
["Moon_Priest",215518,16992734]
["Myrmeleon",215519,16992735]
["Necromant",215520,16992736]
["Obas_Servant",215521,16992737]
["Obstinate_Soul",215522,16992738]
["Restorationist",215523,16992739]
["Royal_Animator",215524,16992740]
["Servant_of_Badna",215525,16992741]
["Shadow_Wizard",215526,16992742]
["Spirit_Incarnate",215527,16992743]
["Templar_of_the_Scale",215528,16992744]
["Veiled_One",215529,16992745]
["Wife_of_Nibenay",215530,16992746]
["Yellow_Robe",215531,16992747]
["AUDITOR",215532,16992748]
["CORNAC",215533,16992749]
["KREEN_SLAYER",215534,16992750]
["MASTER_SHIPFLOATER",215535,16992751]
["PSIOLOGIST",215536,16992752]
["SCION_OF_THE_WORM",215537,16992753]
["SENSEI",215538,16992754]
["TATTOOIST",215539,16992755]
["TEKCHAKAK",215540,16992756]
["TRIBAL_PSIONICIST",215541,16992757]

{"sheet":"Sheet5","index":3,"n_rows":231,"n_cols":4,"rows_kept":231}
["2da row","label","Feat Name 2DA","Feat Name TLK"]
[25000,"FEAT_ARCANIST_SPELLCASTING_ASSASSIN",16992216,215000]
[25001,"FEAT_ARENA_MAGE_SPELLCASTING_ASSASSIN",16992217,215001]
[25002,"FEAT_CERULEAN_SPELLCASTING_ASSASSIN",16992218,215002]
[25003,"FEAT_CHASSEUR_SPELLCASTING_ASSASSIN",16992219,215003]
[25004,"FEAT_DEAD_HEART_SPELLCASTING_ASSASSIN",16992220,215004]
[25005,"FEAT_HALFLING_PROTECTOR_SPELLCASTING_ASSASSIN",16992221,215005]
[25006,"FEAT_NECROMANT_SPELLCASTING_ASSASSIN",16992222,215006]
[25007,"FEAT_RESTORATIONIST_SPELLCASTING_ASSASSIN",16992223,215007]
[25008,"FEAT_SHADOW_WIZARD_SPELLCASTING_ASSASSIN",16992224,215008]
[25009,"FEAT_VEILED_ONE_SPELLCASTING_ASSASSIN",16992225,215009]
[25010,"FEAT_AMBOFARI_SPELLCASTING_CLERIC",16992226,215010]
[25011,"FEAT_BATTLE_DANCER_SPELLCASTING_CLERIC",16992227,215011]
[25012,"FEAT_BLACK_CASSOCK_SPELLCASTING_CLERIC",16992228,215012]
[25013,"FEAT_DRAKE_GUARDIAN_SPELLCASTING_CLERIC",16992229,215013]
[25014,"FEAT_ELEMENT_SINGER_SPELLCASTING_CLERIC",16992230,215014]
[25015,"FEAT_ELEMENTAL_MASTER_SPELLCASTING_CLERIC",16992231,215015]
[25016,"FEAT_ELEMENTALIST_SPELLCASTING_CLERIC",16992232,215016]
[25017,"FEAT_OBSTINATE_SOUL_SPELLCASTING_CLERIC",16992233,215017]
[25018,"FEAT_ABJCHAMP_SPELLCASTING_DEFILER",16992234,215018]
[25019,"FEAT_ARCANIST_SPELLCASTING_DEFILER",16992235,215019]
[25020,"FEAT_ARCH_DEFILER_SPELLCASTING_DEFILER",16992236,215020]
[25021,"FEAT_ARCHMAGE_SPELLCASTING_DEFILER",16992237,215021]
[25022,"FEAT_ARCTRICK_SPELLCASTING_DEFILER",16992238,215022]
[25023,"FEAT_ARENA_MAGE_SPELLCASTING_DEFILER",16992239,215023]
[25024,"FEAT_BONDED_SPELLCASTING_DEFILER",16992240,215024]
[25025,"FEAT_CERULEAN_SPELLCASTING_DEFILER",16992241,215025]
[25026,"FEAT_CHASSEUR_SPELLCASTING_DEFILER",16992242,215026]
[25027,"FEAT_CMANCER_SPELLCASTING_DEFILER",16992243,215027]
[25028,"FEAT_DEAD_HEART_SPELLCASTING_DEFILER",16992244,215028]
[25029,"FEAT_ELESAVANT_SPELLCASTING_DEFILER",16992245,215029]
[25030,"FEAT_LEECH_SPELLCASTING_DEFILER",16992246,215030]
[25031,"FEAT_MASTER_ALCHEMIST_SPELLCASTING_DEFILER",16992247,215031]
[25032,"FEAT_MONARCHS_CHOSEN_SPELLCASTING_DEFILER",16992248,215032]
[25033,"FEAT_MYRMELEON_SPELLCASTING_DEFILER",16992249,215033]
[25034,"FEAT_MYSTIC_SPELLCASTING_DEFILER",16992250,215034]
[25035,"FEAT_NECROMANT_SPELLCASTING_DEFILER",16992251,215035]
[25036,"FEAT_PALEMASTER_SPELLCASTING_DEFILER",16992252,215036]
[25037,"FEAT_ROYAL_ANIMATOR_SPELLCASTING_DEFILER",16992253,215037]
[25038,"FEAT_SHADOW_WIZARD_SPELLCASTING_DEFILER",16992254,215038]
[25039,"FEAT_SPELLSWORD_SPELLCASTING_DEFILER",16992255,215039]
[25040,"FEAT_TRUE_NECRO_SPELLCASTING_DEFILER",16992256,215040]
[25041,"FEAT_VEILED_ONE_SPELLCASTING_DEFILER",16992257,215041]
[25042,"FEAT_VIRTUOSO_SPELLCASTING_DEFILER",16992258,215042]
[25043,"FEAT_AMBOFARI_SPELLCASTING_DRUID",16992259,215043]
[25044,"FEAT_DRAKE_GUARDIAN_SPELLCASTING_DRUID",16992260,215044]
[25045,"FEAT_GROVE_MASTER_SPELLCASTING_DRUID",16992261,215045]
[25046,"FEAT_OBSTINATE_SOUL_SPELLCASTING_DRUID",16992262,215046]
[25047,"FEAT_SPIRIT_INCARNATE_SPELLCASTING_DRUID",16992263,215047]
[25048,"FEAT_AMBOFARI_SPELLCASTING_ELECHAMP",16992264,215048]
[25049,"FEAT_BATTLE_DANCER_SPELLCASTING_ELECHAMP",16992265,215049]
[25050,"FEAT_BLACK_CASSOCK_SPELLCASTING_ELECHAMP",16992266,215050]
[25051,"FEAT_COMBAT_MEDIC_SPELLCASTING_ELECHAMP",16992267,215051]
[25052,"FEAT_DRAKE_GUARDIAN_SPELLCASTING_ELECHAMP",16992268,215052]
[25053,"FEAT_ELEMENT_SINGER_SPELLCASTING_ELECHAMP",16992269,215053]
[25054,"FEAT_ELEMENTALIST_SPELLCASTING_ELECHAMP",16992270,215054]
[25055,"FEAT_MYSTIC_THEURGE_SPELLCASTING_ELECHAMP",16992271,215055]
[25056,"FEAT_OBSTINATE_SOUL_SPELLCASTING_ELECHAMP",16992272,215056]
[25057,"FEAT_OOZEMASTER_SPELLCASTING_ELECHAMP",16992273,215057]
[25058,"FEAT_PSYCHIC_THEURGE_SPELLCASTING_ELECHAMP",16992274,215058]
[25059,"FEAT_TRUE_NECROMANCER_SPELLCASTING_ELECHAMP",16992275,215059]
[25060,"FEAT_WARPRIEST_SPELLCASTING_ELECHAMP",16992276,215060]
[25061,"FEAT_ARCANIST_SPELLCASTING_PRESERVER",16992277,215061]
[25062,"FEAT_ARENA_MAGE_SPELLCASTING_PRESERVER",16992278,215062]
[25063,"FEAT_CERULEAN_SPELLCASTING_PRESERVER",16992279,215063]
[25064,"FEAT_CHASSEUR_SPELLCASTING_PRESERVER",16992280,215064]
[25065,"FEAT_DEAD_HEART_SPELLCASTING_PRESERVER",16992281,215065]
[25066,"FEAT_EARTH_DEFENDER_SPELLCASTING_PRESERVER",16992282,215066]
[25067,"FEAT_HALFLING_PROTECTOR_SPELLCASTING_PRESERVER",16992283,215067]
[25068,"FEAT_NECROMANT_SPELLCASTING_PRESERVER",16992284,215068]
[25069,"FEAT_RESTORATIONIST_SPELLCASTING_PRESERVER",16992285,215069]
[25070,"FEAT_SHADOW_WIZARD_SPELLCASTING_PRESERVER",16992286,215070]
[25071,"FEAT_VEILED_ONE_SPELLCASTING_PRESERVER",16992287,215071]
[25072,"FEAT_AMBOFARI_SPELLCASTING_RANGER",16992288,215072]
[25073,"FEAT_BLACK_CASSOCK_SPELLCASTING_RANGER",16992289,215073]
[25074,"FEAT_DRAKE_GUARDIAN_SPELLCASTING_RANGER",16992290,215074]
[25075,"FEAT_OBSTINATE_SOUL_SPELLCASTING_RANGER",16992291,215075]
[25076,"FEAT_SPIRIT_INCARNATE_SPELLCASTING_RANGER",16992292,215076]
[25077,"FEAT_ABJCHAMP_SPELLCASTING_SHADOWTEMP",16992293,215077]
[25078,"FEAT_ARCANIST_SPELLCASTING_SHADOWTEMP",16992294,215078]
[25079,"FEAT_ARCTRICK_SPELLCASTING_SHADOWTEMP",16992295,215079]
[25080,"FEAT_ARCHMAGE_SPELLCASTING_SHADOWTEMP",16992296,215080]
[25081,"FEAT_ARENA_MAGE_SPELLCASTING_SHADOWTEMP",16992297,215081]
[25082,"FEAT_CMANCER_SPELLCASTING_SHADOWTEMP",16992298,215082]
[25083,"FEAT_CHASSEUR_SPELLCASTING_SHADOWTEMP",16992299,215083]
[25084,"FEAT_DEAD_HEART_SPELLCASTING_SHADOWTEMP",16992300,215084]
[25085,"FEAT_ELESAVANT_SPELLCASTING_SHADOWTEMP",16992301,215085]
[25086,"FEAT_MASTER_ALCHEMIST_SPELLCASTING_SHADOWTEMP",16992302,215086]
[25087,"FEAT_MYSTIC_SPELLCASTING_SHADOWTEMP",16992303,215087]
[25088,"FEAT_NECROMANT_SPELLCASTING_SHADOWTEMP",16992304,215088]
[25089,"FEAT_PALEMASTER_SPELLCASTING_SHADOWTEMP",16992305,215089]
[25090,"FEAT_SHADOW_WIZARD_SPELLCASTING_SHADOWTEMP",16992306,215090]
[25091,"FEAT_SPELLSWORD_SPELLCASTING_SHADOWTEMP",16992307,215091]
[25092,"FEAT_TRUE_NECRO_SPELLCASTING_SHADOWTEMP",16992308,215092]
[25093,"FEAT_VIRTUOSO_SPELLCASTING_SHADOWTEMP",16992309,215093]
[25094,"FEAT_AMBOFARI_SPELLCASTING_TEMPLAR",16992310,215094]
[25095,"FEAT_COMBAT_MEDIC_SPELLCASTING_TEMPLAR",16992311,215095]
[25096,"FEAT_HIEROPHANT_SPELLCASTING_TEMPLAR",16992312,215096]
[25097,"FEAT_MOON_PRIEST_SPELLCASTING_TEMPLAR",16992313,215097]
[25098,"FEAT_MYSTIC_THEURGE_SPELLCASTING_TEMPLAR",16992314,215098]
[25099,"FEAT_OBAS_SERVANT_SPELLCASTING_TEMPLAR",16992315,215099]
[25100,"FEAT_OOZEMASTER_SPELLCASTING_TEMPLAR",16992316,215100]
[25101,"FEAT_PSYCHIC_THEURGE_SPELLCASTING_TEMPLAR",16992317,215101]
[25102,"FEAT_SERVANT_OF_BADNA_SPELLCASTING_TEMPLAR",16992318,215102]
[25103,"FEAT_TEMPLAR_OF_THE_SCALE_SPELLCASTING_TEMPLAR",16992319,215103]
[25104,"FEAT_TRUE_NECROMANCER_SPELLCASTING_TEMPLAR",16992320,215104]
[25105,"FEAT_WARPRIEST_SPELLCASTING_TEMPLAR",16992321,215105]
[25106,"FEAT_WIFE_OF_NIBENAY_SPELLCASTING_TEMPLAR",16992322,215106]
[25107,"FEAT_YELLOW_ROBE_SPELLCASTING_TEMPLAR",16992323,215107]
[25108,"FEAT_AMBOFARI_SPELLCASTING_TEMP_KNIGHT",16992324,215108]
[25109,"FEAT_COMBAT_MEDIC_SPELLCASTING_TEMP_KNIGHT",16992325,215109]
[25110,"FEAT_MYSTIC_THEURGE_SPELLCASTING_TEMP_KNIGHT",16992326,215110]
[25111,"FEAT_OOZEMASTER_SPELLCASTING_TEMP_KNIGHT",16992327,215111]
[25112,"FEAT_PSYCHIC_THEURGE_SPELLCASTING_TEMP_KNIGHT",16992328,215112]
[25113,"FEAT_WARPRIEST_SPELLCASTING_TEMP_KNIGHT",16992329,215113]
[25114,"FEAT_AMBOFARI_MANIFESTING_PSION",16992330,215114]
[25115,"FEAT_AUDITOR_MANIFESTING_PSION",16992331,215115]
[25116,"FEAT_CORNAC_MANIFESTING_PSION",16992332,215116]
[25117,"FEAT_DEAD_HEART_MANIFESTING_PSION",16992333,215117]
[25118,"FEAT_DRAKE_GUARDIAN_MANIFESTING_PSION",16992334,215118]
[25119,"FEAT_KREEN_SLAYER_MANIFESTING_PSION",16992335,215119]
[25120,"FEAT_MASTER_SHIPFLOATER_MANIFESTING_PSION",16992336,215120]
[25121,"FEAT_OBSTINATE_SOUL_MANIFESTING_PSION",16992337,215121]
[25122,"FEAT_PSIOLOGIST_MANIFESTING_PSION",16992338,215122]
[25123,"FEAT_SCION_OF_THE_WORM_MANIFESTING_PSION",16992339,215123]
[25124,"FEAT_SENSEI_MANIFESTING_PSION",16992340,215124]
[25125,"FEAT_TATTOOIST_MANIFESTING_PSION",16992341,215125]
[25126,"FEAT_TEKCHAKAK_MANIFESTING_PSION",16992342,215126]
[25127,"FEAT_TRIBAL_PSIONICIST_MANIFESTING_PSION",16992343,215127]
[25128,"FEAT_AMBOFARI_MANIFESTING_PSYROGUE",16992344,215128]
[25129,"FEAT_AUDITOR_MANIFESTING_PSYROGUE",16992345,215129]
[25130,"FEAT_CORNAC_MANIFESTING_PSYROGUE",16992346,215130]
[25131,"FEAT_DEAD_HEART_MANIFESTING_PSYROGUE",16992347,215131]
[25132,"FEAT_DRAKE_GUARDIAN_MANIFESTING_PSYROGUE",16992348,215132]
[25133,"FEAT_KREEN_SLAYER_MANIFESTING_PSYROGUE",16992349,215133]
[25134,"FEAT_MASTER_SHIPFLOATER_MANIFESTING_PSYROGUE",16992350,215134]
[25135,"FEAT_OBSTINATE_SOUL_MANIFESTING_PSYROGUE",16992351,215135]
[25136,"FEAT_PSIOLOGIST_MANIFESTING_PSYROGUE",16992352,215136]
[25137,"FEAT_SCION_OF_THE_WORM_MANIFESTING_PSYROGUE",16992353,215137]
[25138,"FEAT_SENSEI_MANIFESTING_PSYROGUE",16992354,215138]
[25139,"FEAT_TATTOOIST_MANIFESTING_PSYROGUE",16992355,215139]
[25140,"FEAT_TEKCHAKAK_MANIFESTING_PSYROGUE",16992356,215140]
[25141,"FEAT_TRIBAL_PSIONICIST_MANIFESTING_PSYROGUE",16992357,215141]
[25142,"FEAT_AMBOFARI_MANIFESTING_PSYWAR",16992358,215142]
[25143,"FEAT_AUDITOR_MANIFESTING_PSYWAR",16992359,215143]
[25144,"FEAT_CORNAC_MANIFESTING_PSYWAR",16992360,215144]
[25145,"FEAT_DEAD_HEART_MANIFESTING_PSYWAR",16992361,215145]
[25146,"FEAT_DRAKE_GUARDIAN_MANIFESTING_PSYWAR",16992362,215146]
[25147,"FEAT_KREEN_SLAYER_MANIFESTING_PSYWAR",16992363,215147]
[25148,"FEAT_MASTER_SHIPFLOATER_MANIFESTING_PSYWAR",16992364,215148]
[25149,"FEAT_OBSTINATE_SOUL_MANIFESTING_PSYWAR",16992365,215149]
[25150,"FEAT_PSIOLOGIST_MANIFESTING_PSYWAR",16992366,215150]
[25151,"FEAT_SCION_OF_THE_WORM_MANIFESTING_PSYWAR",16992367,215151]
[25152,"FEAT_SENSEI_MANIFESTING_PSYWAR",16992368,215152]
[25153,"FEAT_TATTOOIST_MANIFESTING_PSYWAR",16992369,215153]
[25154,"FEAT_TEKCHAKAK_MANIFESTING_PSYWAR",16992370,215154]
[25155,"FEAT_TRIBAL_PSIONICIST_MANIFESTING_PSYWAR",16992371,215155]
[25156,"FEAT_AMBOFARI_MANIFESTING_WARMIND",16992372,215156]
[25157,"FEAT_AUDITOR_MANIFESTING_WARMIND",16992373,215157]
[25158,"FEAT_CORNAC_MANIFESTING_WARMIND",16992374,215158]
[25159,"FEAT_DEAD_HEART_MANIFESTING_WARMIND",16992375,215159]
[25160,"FEAT_DRAKE_GUARDIAN_MANIFESTING_WARMIND",16992376,215160]
[25161,"FEAT_KREEN_SLAYER_MANIFESTING_WARMIND",16992377,215161]
[25162,"FEAT_MASTER_SHIPFLOATER_MANIFESTING_WARMIND",16992378,215162]
[25163,"FEAT_OBSTINATE_SOUL_MANIFESTING_WARMIND",16992379,215163]
[25164,"FEAT_SCION_OF_THE_WORM_MANIFESTING_WARMIND",16992380,215164]
[25165,"FEAT_SENSEI_MANIFESTING_WARMIND",16992381,215165]
[25166,"FEAT_TATTOOIST_MANIFESTING_WARMIND",16992382,215166]
[25167,"FEAT_TEKCHAKAK_MANIFESTING_WARMIND",16992383,215167]
[25168,"FEAT_TRIBAL_PSIONICIST_MANIFESTING_WARMIND",16992384,215168]
[25169,"FEAT_AMBOFARI_MANIFESTING_WILDER",16992385,215169]
[25170,"FEAT_AUDITOR_MANIFESTING_WILDER",16992386,215170]
[25171,"FEAT_CORNAC_MANIFESTING_WILDER",16992387,215171]
[25172,"FEAT_DEAD_HEART_MANIFESTING_WILDER",16992388,215172]
[25173,"FEAT_DRAKE_GUARDIAN_MANIFESTING_WILDER",16992389,215173]
[25174,"FEAT_KREEN_SLAYER_MANIFESTING_WILDER",16992390,215174]
[25175,"FEAT_MASTER_SHIPFLOATER_MANIFESTING_WILDER",16992391,215175]
[25176,"FEAT_OBSTINATE_SOUL_MANIFESTING_WILDER",16992392,215176]
[25177,"FEAT_PSIOLOGIST_MANIFESTING_WILDER",16992393,215177]
[25178,"FEAT_SCION_OF_THE_WORM_MANIFESTING_WILDER",16992394,215178]
[25179,"FEAT_SENSEI_MANIFESTING_WILDER",16992395,215179]
[25180,"FEAT_TATTOOIST_MANIFESTING_WILDER",16992396,215180]
[25181,"FEAT_TEKCHAKAK_MANIFESTING_WILDER",16992397,215181]
[25182,"FEAT_TRIBAL_PSIONICIST_MANIFESTING_WILDER",16992398,215182]
[25183,"FEAT_ABCHAMP_SPELLCASTING_ATHBARD",16992399,215183]
[25184,"FEAT_ARCANIST_SPELLCASTING_ATHBARD",16992400,215184]
[25185,"FEAT_ARCHMAGE_SPELLCASTING_ATHBARD",16992401,215185]
[25186,"FEAT_ARCTRICK_SPELLCASTING_ATHBARD",16992402,215186]
[25187,"FEAT_ARENA_MAGE_SPELLCASTING_ATHBARD",16992403,215187]
[25188,"FEAT_CERULEAN_SPELLCASTING_ATHBARD",16992404,215188]
[25189,"FEAT_CHASSEUR_SPELLCASTING_ATHBARD",16992405,215189]
[25190,"FEAT_CMANCER_SPELLCASTING_ATHBARD",16992406,215190]
[25191,"FEAT_DEAD_HEART_SPELLCASTING_ATHBARD",16992407,215191]
[25192,"FEAT_EARTH_DEFENDER_SPELLCASTING_ATHBARD",16992408,215192]
[25193,"FEAT_ELESAVANT_SPELLCASTING_ATHBARD",16992409,215193]
[25194,"FEAT_HALFLING_PROTECTOR_SPELLCASTING_ATHBARD",16992410,215194]
[25195,"FEAT_MASTER_ALCHEMIST_SPELLCASTING_ATHBARD",16992411,215195]
[25196,"FEAT_MYSTIC_SPELLCASTING_ATHBARD",16992412,215196]
[25197,"FEAT_NECROMANT_SPELLCASTING_ATHBARD",16992413,215197]
[25198,"FEAT_PALEMASTER_SPELLCASTING_ATHBARD",16992414,215198]
[25199,"FEAT_RESTORATIONIST_SPELLCASTING_ATHBARD",16992415,215199]
[25200,"FEAT_SHADOW_WIZARD_SPELLCASTING_ATHBARD",16992416,215200]
[25201,"FEAT_SPELLSWORD_SPELLCASTING_ATHBARD",16992417,215201]
[25202,"FEAT_TRUE_NECRO_SPELLCASTING_ATHBARD",16992418,215202]
[25203,"FEAT_VEILED_ONE_SPELLCASTING_ATHBARD",16992419,215203]
[25204,"FEAT_VIRTUOSO_SPELLCASTING_ATHBARD",16992420,215204]
[25205,"FEAT_ABCHAMP_SPELLCASTING_ROGUE",16992421,215205]
[25206,"FEAT_ARCANIST_SPELLCASTING_ROGUE",16992422,215206]
[25207,"FEAT_ARCHMAGE_SPELLCASTING_ROGUE",16992423,215207]
[25208,"FEAT_ARCTRICK_SPELLCASTING_ROGUE",16992424,215208]
[25209,"FEAT_ARENA_MAGE_SPELLCASTING_ROGUE",16992425,215209]
[25210,"FEAT_CERULEAN_SPELLCASTING_ROGUE",16992426,215210]
[25211,"FEAT_CHASSEUR_SPELLCASTING_ROGUE",16992427,215211]
[25212,"FEAT_CMANCER_SPELLCASTING_ROGUE",16992428,215212]
[25213,"FEAT_DEAD_HEART_SPELLCASTING_ROGUE",16992429,215213]
[25214,"FEAT_EARTH_DEFENDER_SPELLCASTING_ROGUE",16992430,215214]
[25215,"FEAT_ELESAVANT_SPELLCASTING_ROGUE",16992431,215215]
[25216,"FEAT_HALFLING_PROTECTOR_SPELLCASTING_ROGUE",16992432,215216]
[25217,"FEAT_MASTER_ALCHEMIST_SPELLCASTING_ROGUE",16992433,215217]
[25218,"FEAT_MYSTIC_SPELLCASTING_ROGUE",16992434,215218]
[25219,"FEAT_NECROMANT_SPELLCASTING_ROGUE",16992435,215219]
[25220,"FEAT_PALEMASTER_SPELLCASTING_ROGUE",16992436,215220]
[25221,"FEAT_RESTORATIONIST_SPELLCASTING_ROGUE",16992437,215221]
[25222,"FEAT_SHADOW_WIZARD_SPELLCASTING_ROGUE",16992438,215222]
[25223,"FEAT_SPELLSWORD_SPELLCASTING_ROGUE",16992439,215223]
[25224,"FEAT_TRUE_NECRO_SPELLCASTING_ROGUE",16992440,215224]
[25225,"FEAT_VEILED_ONE_SPELLCASTING_ROGUE",16992441,215225]
[25226,"FEAT_VIRTUOSO_SPELLCASTING_ROGUE",16992442,215226]
[25227,"FEAT_OOZEMASTER_SPELLCASTING_ATHBARD",16992443,215227]
[25228,"FEAT_OOZEMASTER_SPELLCASTING_ROGUE",16992444,215228]
[25229,"FEAT_OOZEMASTER_SPELLCASTING_SHADOWTEMP",16992445,215229]

{"sheet":"Sheet1","index":4,"n_rows":47,"n_cols":16,"rows_kept":47}
["const int ","CLASS_TYPE_AMBOFARI"," = ",-1,null,{"$f":"CONCATENATE(A1,B1,C1,D1)","v":"const int CLASS_TYPE_AMBOFARI = -1"}]
["const int ","CLASS_TYPE_ARCANIST"," = ",-1,null,{"$f":"CONCATENATE(A2,B2,C2,D2)","v":"const int CLASS_TYPE_ARCANIST = -1"}]
["const int ","CLASS_TYPE_ARCH_DEFILER"," = ",-1,null,"const int CLASS_TYPE_ARCH_DEFILER = -1"]
["const int ","CLASS_TYPE_ARENA_MAGE"," = ",-1,null,"const int CLASS_TYPE_ARENA_MAGE = -1"]
["const int ","CLASS_TYPE_AUDITOR"," = ",-1,null,"const int CLASS_TYPE_AUDITOR = -1",{"$nulls":9},"const int CLASS_TYPE_AMBOFARI = -1"]
["const int ","CLASS_TYPE_BATTLE_DANCER"," = ",-1,null,"const int CLASS_TYPE_BATTLE_DANCER = -1",{"$nulls":9},"const int CLASS_TYPE_ARCANIST = -1"]
["const int ","CLASS_TYPE_BLACK_CASSOCK"," = ",-1,null,"const int CLASS_TYPE_BLACK_CASSOCK = -1",{"$nulls":9},"const int CLASS_TYPE_ARCH_DEFILER = -1"]
["const int ","CLASS_TYPE_CERULEAN"," = ",-1,null,"const int CLASS_TYPE_CERULEAN = -1",{"$nulls":9},"const int CLASS_TYPE_ARENA_MAGE = -1"]
["const int ","CLASS_TYPE_CHASSEUR"," = ",-1,null,"const int CLASS_TYPE_CHASSEUR = -1",{"$nulls":9},"const int CLASS_TYPE_AUDITOR = -1"]
["const int ","CLASS_TYPE_CORNAC"," = ",-1,null,"const int CLASS_TYPE_CORNAC = -1",{"$nulls":9},"const int CLASS_TYPE_BATTLE_DANCER = -1"]
["const int ","CLASS_TYPE_DEAD_HEART"," = ",-1,null,"const int CLASS_TYPE_DEAD_HEART = -1",{"$nulls":9},"const int CLASS_TYPE_BLACK_CASSOCK = -1"]
["const int ","CLASS_TYPE_DRAKE_GUARDIAN"," = ",-1,null,"const int CLASS_TYPE_DRAKE_GUARDIAN = -1",{"$nulls":9},"const int CLASS_TYPE_CERULEAN = -1"]
["const int ","CLASS_TYPE_EARTH_DEFENDER"," = ",-1,null,"const int CLASS_TYPE_EARTH_DEFENDER = -1",{"$nulls":9},"const int CLASS_TYPE_CHASSEUR = -1"]
["const int ","CLASS_TYPE_ELEMENTALIST"," = ",-1,null,"const int CLASS_TYPE_ELEMENTALIST = -1",{"$nulls":9},"const int CLASS_TYPE_CORNAC = -1"]
["const int ","CLASS_TYPE_ELEMENTAL_MASTER"," = ",-1,null,"const int CLASS_TYPE_ELEMENTAL_MASTER = -1",{"$nulls":9},"const int CLASS_TYPE_DEAD_HEART = -1"]
["const int ","CLASS_TYPE_ELEMENT_SINGER"," = ",-1,null,"const int CLASS_TYPE_ELEMENT_SINGER = -1",{"$nulls":9},"const int CLASS_TYPE_DRAKE_GUARDIAN = -1"]
["const int ","CLASS_TYPE_GROVE_MASTER"," = ",-1,null,"const int CLASS_TYPE_GROVE_MASTER = -1",{"$nulls":9},"const int CLASS_TYPE_EARTH_DEFENDER = -1"]
["const int ","CLASS_TYPE_HALFLING_PROTECTOR"," = ",-1,null,"const int CLASS_TYPE_HALFLING_PROTECTOR = -1",{"$nulls":9},"const int CLASS_TYPE_ELEMENTALIST = -1"]
["const int ","CLASS_TYPE_KREEN_SLAYER"," = ",-1,null,"const int CLASS_TYPE_KREEN_SLAYER = -1",{"$nulls":9},"const int CLASS_TYPE_ELEMENTAL_MASTER = -1"]
["const int ","CLASS_TYPE_LEECH"," = ",-1,null,"const int CLASS_TYPE_LEECH = -1",{"$nulls":9},"const int CLASS_TYPE_ELEMENT_SINGER = -1"]
["const int ","CLASS_TYPE_MASTER_SHIPFLOATER"," = ",-1,null,"const int CLASS_TYPE_MASTER_SHIPFLOATER = -1",{"$nulls":9},"const int CLASS_TYPE_GROVE_MASTER = -1"]
["const int ","CLASS_TYPE_MONARCHS_CHOSEN"," = ",-1,null,"const int CLASS_TYPE_MONARCHS_CHOSEN = -1",{"$nulls":9},"const int CLASS_TYPE_HALFLING_PROTECTOR = -1"]
["const int ","CLASS_TYPE_MOON_PRIEST"," = ",-1,null,"const int CLASS_TYPE_MOON_PRIEST = -1",{"$nulls":9},"const int CLASS_TYPE_KREEN_SLAYER = -1"]
["const int ","CLASS_TYPE_MYRMELEON"," = ",-1,null,"const int CLASS_TYPE_MYRMELEON = -1",{"$nulls":9},"const int CLASS_TYPE_LEECH = -1"]
["const int ","CLASS_TYPE_NECROMANT"," = ",-1,null,"const int CLASS_TYPE_NECROMANT = -1",{"$nulls":9},"const int CLASS_TYPE_MASTER_SHIPFLOATER = -1"]
["const int ","CLASS_TYPE_OBAS_SERVANT"," = ",-1,null,"const int CLASS_TYPE_OBAS_SERVANT = -1",{"$nulls":9},"const int CLASS_TYPE_MONARCHS_CHOSEN = -1"]
["const int ","CLASS_TYPE_OBSTINATE_SOUL"," = ",-1,null,"const int CLASS_TYPE_OBSTINATE_SOUL = -1",{"$nulls":9},"const int CLASS_TYPE_MOON_PRIEST = -1"]
["const int ","CLASS_TYPE_PSIOLOGIST"," = ",-1,null,"const int CLASS_TYPE_PSIOLOGIST = -1",{"$nulls":9},"const int CLASS_TYPE_MYRMELEON = -1"]
["const int ","CLASS_TYPE_RESTORATIONIST"," = ",-1,null,"const int CLASS_TYPE_RESTORATIONIST = -1",{"$nulls":9},"const int CLASS_TYPE_NECROMANT = -1"]
["const int ","CLASS_TYPE_ROYAL_ANIMATOR"," = ",-1,null,"const int CLASS_TYPE_ROYAL_ANIMATOR = -1",{"$nulls":9},"const int CLASS_TYPE_OBAS_SERVANT = -1"]
["const int ","CLASS_TYPE_SCION_OF_THE_WORM"," = ",-1,null,"const int CLASS_TYPE_SCION_OF_THE_WORM = -1",{"$nulls":9},"const int CLASS_TYPE_OBSTINATE_SOUL = -1"]
["const int ","CLASS_TYPE_SENSEI"," = ",-1,null,"const int CLASS_TYPE_SENSEI = -1",{"$nulls":9},"const int CLASS_TYPE_PSIOLOGIST = -1"]
["const int ","CLASS_TYPE_SERVANT_OF_BADNA"," = ",-1,null,"const int CLASS_TYPE_SERVANT_OF_BADNA = -1",{"$nulls":9},"const int CLASS_TYPE_RESTORATIONIST = -1"]
["const int ","CLASS_TYPE_SHADOW_WIZARD"," = ",-1,null,"const int CLASS_TYPE_SHADOW_WIZARD = -1",{"$nulls":9},"const int CLASS_TYPE_ROYAL_ANIMATOR = -1"]
["const int ","CLASS_TYPE_SPELLSWORD"," = ",-1,null,"const int CLASS_TYPE_SPELLSWORD = -1",{"$nulls":9},"const int CLASS_TYPE_SCION_OF_THE_WORM = -1"]
["const int ","CLASS_TYPE_SPIRIT_INCARNATE"," = ",-1,null,"const int CLASS_TYPE_SPIRIT_INCARNATE = -1",{"$nulls":9},"const int CLASS_TYPE_SENSEI = -1"]
["const int ","CLASS_TYPE_TATTOOIST"," = ",-1,null,"const int CLASS_TYPE_TATTOOIST = -1",{"$nulls":9},"const int CLASS_TYPE_SERVANT_OF_BADNA = -1"]
["const int ","CLASS_TYPE_TEKCHAKAK"," = ",-1,null,"const int CLASS_TYPE_TEKCHAKAK = -1",{"$nulls":9},"const int CLASS_TYPE_SHADOW_WIZARD = -1"]
["const int ","CLASS_TYPE_TEMPLAR_OF_THE_SCALE"," = ",-1,null,"const int CLASS_TYPE_TEMPLAR_OF_THE_SCALE = -1",{"$nulls":9},"const int CLASS_TYPE_SPELLSWORD = -1"]
["const int ","CLASS_TYPE_TRIBAL_PSIONICIST"," = ",-1,null,"const int CLASS_TYPE_TRIBAL_PSIONICIST = -1",{"$nulls":9},"const int CLASS_TYPE_SPIRIT_INCARNATE = -1"]
["const int ","CLASS_TYPE_VEILED_ONE"," = ",-1,null,"const int CLASS_TYPE_VEILED_ONE = -1",{"$nulls":9},"const int CLASS_TYPE_TATTOOIST = -1"]
["const int ","CLASS_TYPE_WIFE_OF_NIBENAY"," = ",-1,null,"const int CLASS_TYPE_WIFE_OF_NIBENAY = -1",{"$nulls":9},"const int CLASS_TYPE_TEKCHAKAK = -1"]
["const int ","CLASS_TYPE_YELLOW_ROBE"," = ",-1,null,"const int CLASS_TYPE_YELLOW_ROBE = -1",{"$nulls":9},"const int CLASS_TYPE_TEMPLAR_OF_THE_SCALE = -1"]
[{"$nulls":15},"const int CLASS_TYPE_TRIBAL_PSIONICIST = -1"]
[{"$nulls":15},"const int CLASS_TYPE_VEILED_ONE = -1"]
[{"$nulls":15},"const int CLASS_TYPE_WIFE_OF_NIBENAY = -1"]
[{"$nulls":15},"const int CLASS_TYPE_YELLOW_ROBE = -1"]

{"sheet":"Sheet2","index":5,"n_rows":0,"n_cols":0,"rows_kept":0}